{"text_format":"1","workbook":"xlsx","n_sheets":21,"sheets":["Cover Page","Contents","Facility Info","Operational Data","Operational Summary","Perf. Form 1","Energy Form 1","Permit Compliance","Improvements","Public Liasion","Residue Quality ","Water","Air (periodic)","Air (CEMS)","HCl","SO2","NOx","TOC","Particulates","CO 95% 10 min","NH3"],"not_rendered":{"charts":7,"images":0,"macros":1,"external_links":0,"defined_names":21,"comments":0,"pivot_tables":0},"unopened":[],"bounds":{"document_bytes":16777216,"sheet_cells":100000,"rows_first":2000,"rows_last":500,"rows_between":2000,"halvings":0,"cell_chars":16384,"cell_head_chars":4096},"cells_cut":0,"cells_raw":0,"read":"whole","date_system":"1900"}

{"sheet":"Cover Page","index":0,"n_rows":53,"n_cols":14,"rows_kept":53,"cut":false,"hidden":false,"merged":[[48,2,48,3],[48,6,48,8],[52,2,52,3],[36,1,36,8],[40,2,40,8],[42,2,42,4],[44,2,44,4],[46,2,46,3],[46,6,46,8],[13,13,18,15],[34,1,34,8],[0,3,5,6],[28,1,28,8],[30,1,30,8],[32,1,32,8]]}
[null,null,null,"North Midlands Operations Ltd"]
[null,null,null,null,null,null,null,null,null,null,null,null,null,"Version 20.5 "]
[]
[]
[]
[]
[]
[null,"Add photo"]
[]
[]
[]
[]
[null,null,null,null,null,null,null,null,null,null,null,null,null,"Notes:"]
[null,null,null,null,null,null,null,null,null,null,null,null,null,"This template may require adjustments by individual operators to meet specific reporting requirements as defined in the site Permit(s)"]
[]
[]
[]
[]
[]
[]
[]
[]
[]
[]
[]
[]
[]
[]
[null,"Annual Performance Report 2022"]
[]
[null,"Permit EPR/HP3247QS"]
[]
[null,"Dudley Energy from Waste Facility"]
[]
[null,"North Midlands Operations Ltd"]
[]
[]
[]
[null,"Year:",2022]
[]
[null,"Address:","Lister Road, Dudley, West Midlands, DY2 8YT"]
[]
[null,"Tel: ","01179 372 811"]
[]
[null,"Email: ","emily.hingston@sol-environment.co.uk"]
[]
[null,"Prepared by:","Emily Hingston",null,null,"Position:","Consultant"]
[]
[null,"Approved by:","Kate Harrop",null,null,"Position:","Quality & Environmental Manager"]
[]
[null,"Version:",1]
[]
[null,"Issue Date:","2023-01-31"]

{"sheet":"Contents","index":1,"n_rows":34,"n_cols":11,"rows_kept":34,"cut":false,"hidden":false,"merged":[[3,1,3,6],[4,1,4,6],[5,1,5,6],[6,1,6,6],[7,1,7,6],[8,1,8,6],[9,1,9,6],[10,1,10,6],[11,1,11,6],[12,1,12,6],[18,1,18,6],[19,1,19,6],[20,1,20,6],[13,1,13,6],[14,1,14,6],[15,1,15,6],[16,1,16,6],[17,1,17,6]]}
[{"$f":"+'Cover Page'!$B$29","v":"Annual Performance Report 2022"},null,null,null,{"$f":"+'Cover Page'!$B$33","v":"Dudley Energy from Waste Facility"}]
[]
["Contents",null,null,null,null,null,null,null,null,null,"Notes:"]
["Section","Subject",null,null,null,null,null,"Page ",null,null,"Section references and Page nos. to be inserted"]
[null,"Facility Information",null,null,null,null,null,4,null,null,"Sections and Subjects may require adjustment by individual operators to meet specific reporting requirements as defined in the sites Permit(s)"]
[null,"Operational Summary",null,null,null,null,null,6]
[null,"Operational Data",null,null,null,null,null,5]
[null,"Performance Form 1",null,null,null,null,null,7]
[null,"Energy Form 1",null,null,null,null,null,8]
[null,"Permit Compliance",null,null,null,null,null,9]
[null,"Improvements",null,null,null,null,null,11]
[null,"Public Liasion",null,null,null,null,null,12]
[null,"Residue Quality - Optional",null,null,null,null,null,13]
[null,"Emissions to Water",null,null,null,null,null,14]
[null,"Emissions to Air (periodically monitored)",null,null,null,null,null,15]
[null,"Emissions to Air (continuously monitored)",null,null,null,null,null,16]
[null,"Hydrogen Chloride emissions",null,null,null,null,null,17]
[null,"Sulphur Dioxdie emsissions",null,null,null,null,null,18]
[null,"Oxides of Notrigen emissions",null,null,null,null,null,19]
[null,"Total Organic Carbon emissions",null,null,null,null,null,20]
[null,"Particulate Matter emissions",null,null,null,null,null,21]
[null,"Carbon Monoxide emissions",null,null,null,null,null,22]
[null,"Ammonia emissions",null,null,null,null,null,23]
[]
["Version Control"]
["Section","Information",null,null,null,null,null,"Date"]
[]
[]
[]
[]
[]
[]
["Distribution"]
["Copy","Name, Role",null,null,null,null,null,"No."]

{"sheet":"Facility Info","index":2,"n_rows":22,"n_cols":11,"rows_kept":22,"cut":false,"hidden":false,"merged":[[4,0,17,8],[21,0,73,8]]}
[{"$f":"+'Cover Page'!$B$29","v":"Annual Performance Report 2022"},null,null,null,{"$f":"+'Cover Page'!$B$33","v":"Dudley Energy from Waste Facility"}]
[]
["Plant Description and Design",null,null,null,null,null,null,null,null,null,"Notes:"]
[]
["The Dudley Energy from Waste Facility utilises municipal waste to recover energy in the form of electricity and steam for export to the local grid. The facility processes approximately 105,000 tpa of waste in two combustion streams with a combined capacity of up to 12 tonnes per hour which operate using moving grate furnace systems.  The heat produced during combustion process is converted to electrical energy by generating steam in high-pressure boilers and expanding the steam through a steam turbine.  When operating at full load, the plant will typically generate around 7.4 MW of electricity and, after satisfying its own power needs, exports approximately 6.5 MW of electricity to the grid. \n\nThe installation provides a sustainable method of waste disposal and recovery, predominantly for the area within the administrative boundary of Dudley Metropolitan Borough Council, with smaller quantities of wastes accepted, where capacity and demand exists, from other local authorities within the general vicinity of the plant.\n\nThe process includes waste reception and storage, combustion, waste heat boilers, abatement of flue gases and the onsite storage of residues produced, namely IBA and APCr.\n\nThe plant is operated in accordance with its Environmental Management System which is designed to meet the requirements of ISO14001:2004.  ",null,null,null,null,null,null,null,null,null,"Include summary of plant design, design capacity, no. of combustion lines, electrical and heat capacity and any other general information that describes the facility, its location and purpose "]
[]
[]
[]
[]
[]
[]
[]
[]
[]
[]
[]
[]
[]
[]
["Summary of Operational Processes and Procedures"]
[]
["The principle components of the process comprise the following:\n\nWaste Acceptance and Reception: All waste is delivered directly into the fuel storage building and unloaded into the storage bunkers. When required, the waste is discharged onto the feedstock feed system, which delivers the waste into the furnaces via feed hoppers. All waste is accepted in accordance to the sites waste acceptance procedures.\n\nCombustion: The feed ram ensures that material falls into the moving grate within the furnace in a controlled manner.  The moving grate ensures the waste is agitated as it progresses down the furnace to the ash discharge.  Primary air is introduced beneath the grate causing the waste to go through a series of drying and burning areas.  Secondary air is introduced from above the grate for combustion control.  Auxiliary oil fired burners are located in the combustion chamber for start up and temperature control.  The produced gases are resident in the combustion chamber at the 850C for at least 2seconds before transfer to the boiler , economiser and abatement plant. \n\nElectricity Generation: Each furnace is equipped with a 2-pass water tube boiler raising steam at 45 bar and 355C. The steam then passes to a Steam Turbine and Generator, which exports electricity to the grid.\n\nFlue-Gas Cleaning: Flue gas cleaning and pollution control consists of urea injection for De-NOx, semi-dry scrubbing using milk of lime spray for acid gas neutralisation and activated carbon powder injection for absorption and removal of heavy metals, dioxins, VOCs and other harmful substances.  Bag filters remove particulates prior to emission to atmosphere via a single 47m high stack.\n\nProcess effluent is treated onsite in the effluent treatment plant and recycled through the process. Any surplus is discharged to foul sewer. \n\nThe Plant is regulated under the terms of a Permit issued by the Environment Agency (reference HP3247QS) which contains conditions to ensure that the requirements of the Industrial Emissions Directive are met. \nNorth Midlands Operations Ltd operates all of its sites under an Integrated Management System certified to ISO 14001:2015 (environmental management), ISO 9001:2015 (quality management), and ISO 45001:2018 (health and safety management).  \nIn terms of plant operation, the incineration processes have been designed against the background of a detailed assessment of the prevailing environmental conditions at the site location, and are based upon the Best Available Technology (BAT) as detailed both in the original Authorisation application and the application for the Permit issued under the Environmental Permitting Regulations.  These include, but are not limited to, the following:\n• Well proven process plant developed specifically for incineration of municipal solid wastes\n• Efficient, comprehensive process control and monitoring systems to ensure optimum conditions for complete combustion of the wastes and to minimise emissions from the processes\n• Operations confined within buildings under slight negative pressure in order to contain and minimise emissions such as dust and odour\n• Qualified and experienced operating and maintenance personnel to implement procedures to ensure that the required high standards are maintained. Operating and Maintenance Procedures are established according to an internationally recognised system of quality assurance\n• Multi-stage high efficiency flue gas cleaning systems comprising deNOx Selective Non-Catalytic Reduction (SNCR) for the removal of oxides of nitrogen, activated carbon and lime semi-dry acid gas scrubbing for controlling acid gas, dioxins/furans and mercury emissions\n• Final stage flue gas abatement for particulate materials using fabric filtration\n• Residues from the combustion process and from the flue gas cleaning system disposed of by approved means, maximising recycling wherever possible\n• Waste water from the process is neutralised and recycled as far as is practicable to minimise the quantities released to sewers\n• Provision of bunds or double skinned vessels for storage of fuel and chemicals in order to prevent accidental and inappropriate discharge to the public sewers and watercourse.\nThe site is currently working towards compliance with the new Waste Incineration BAT Conclusions, to which compliance is required by 03.12.2023.\n\n",null,null,null,null,null,null,null,null,null,"Include summary of key processes and procedures such as (but not limited to); waste reception, control rooms, grate, bed and boiler, energy & heat  generation, cooling systems, residue management, emission controls, health and safety systems, maintenance"]

{"sheet":"Operational Data","index":3,"n_rows":58,"n_cols":11,"rows_kept":58,"cut":false,"hidden":false,"merged":[[30,1,32,1],[27,2,27,5],[27,6,27,7],[3,1,3,2],[49,0,50,0],[20,1,23,1],[7,1,13,1]]}
[{"$f":"+'Cover Page'!$B$29","v":"Annual Performance Report 2022"},null,null,null,"Dudley EfW"]
[]
["Operational Data",null,null,null,null,null,null,null,null,null,"Notes:"]
["Plant Size",105000,null,"tonnes pa",null,"MWth",7.14,"MWe",null,null,"* - RDF to include SRF "]
["No. of combustion lines",2,null,"No. of Turbines:",null,1,null,null,null,null,"** - CHP plants only"]
[null,null,null,null,null,null,null,null,null,null,"2020 updates include;  heat in MWh, water in Litres, NCV in MJ/kg"]
["Waste types received","Unit","Q1","Q2","Q3","Q4","Year Total","%"]
["Household / Local Authority","tonnes",21278,20580,20544,20686,{"$f":"SUM(C8:F8)","v":83088},{"$f":"IF(G8>0,G8/$G$15,\"-\")","v":0.87097078524481897},null,null,"Availabiity Definition: 'the availability of a line is to be calculated by the number of hours the line reported Continuously Monitored emission levels to the Regulator through the calendar year divided by the total number of hours in that year. \nThe overall plant availability is calculated as the Mean of all lines in the plant. For clarity this includes periods of Other Than Normal Operating Conditions (OTNOC) and abnormal operation.'  \n\nRationale: The primary function of an Energy from Waste facility is the disposal of waste. It follows therefore that the availability of a plant is determined by the period of time a facility spends undertaking this activity."]
["Commercial & Industrial ",null,3789,2746,3790,1984,{"$f":"SUM(C9:F9)","v":12309},0.12902921475518098]
["Hazardous ",null,0,0,0,0,0,"-"]
["Clinical",null,0,0,0,0,0,"-"]
["Waste wood (biomass) ",null,0,0,0,0,0,"-"]
["Refuse Derived Fuel * - H'hold/LA",null,0,0,0,0,{"$f":"SUM(C13:F13)","v":0},"-"]
["Refuse Derived Fuel *  - C&I",null,0,0,0,0,0,"-"]
["Total waste received",null,{"$f":"SUM(C8:C14)","v":25067},{"$f":"SUM(D8:D14)","v":23326},{"$f":"SUM(E8:E14)","v":24334},{"$f":"SUM(F8:F14)","v":22670},{"$f":"SUM(G8:G14)","v":95397},1]
["Rejected Waste ",null,null,null,null,null,{"$f":"SUM(C16:F16)","v":0},{"$f":"IF(G16>0,G16/$G$15,\"-\")","v":"-"}]
["Unprocessed waste transferred out",null,null,null,null,null,{"$f":"SUM(C17:F17)","v":0},{"$f":"IF(G17>0,G17/$G$15,\"-\")","v":"-"}]
["Total waste combusted",null,25609,21117,24233,2342,{"$f":"SUM(C18:F18)","v":73301},{"$f":"IF(G18>0,G18/$G$15,\"-\")","v":0.76837846053859138}]
[]
["Energy Useage / Export","Unit","Q1","Q2","Q3","Q4","Year Total","KWh/te"]
["Power Generated","MWh",12532,9248,10045,9037,{"$f":"SUM(C21:F21)","v":40862},{"$f":"IF(G21>0,G21*1000/$G$18,\"-\")","v":557.45487783249882}]
["Power Exported",null,10372,7654,8314,7479,{"$f":"SUM(C22:F22)","v":33819},{"$f":"IF(G22>0,G22*1000/$G$18,\"-\")","v":461.37160475300476}]
["Power Used on site",null,2160,1594,1731,1557,{"$f":"SUM(C23:F23)","v":7042},{"$f":"IF(G23>0,G23*1000/$G$18,\"-\")","v":96.069630700808986}]
["Power Imported",null,16,114,11,92,233,{"$f":"IF(G24>0,G24*1000/$G$18,\"-\")","v":3.1786742336393772}]
["Parasitic Load","%",{"$f":"IF(C21>0,1-C22/(C21+C24),\"-\")","v":0.173414089894804},{"$f":"IF(D21>0,1-D22/(D21+D24),\"-\")","v":0.18243964964751125},{"$f":"IF(E21>0,1-E22/(E21+E24),\"-\")","v":0.1732299124900557},{"$f":"IF(F21>0,1-F22/(F21+F24),\"-\")","v":0.18074268813670724},{"$f":"IF(G21>0,1-G22/(G21+G24),\"-\")","v":0.17705316948533889}]
["Thermal Energy Produced **","MWh",null,null,null,null,{"$f":"SUM(C26:F26)","v":0},{"$f":"IF(G26>0,G26*1000/$G$18,\"-\")","v":"-"}]
["Thermal Energy Exported **",null,null,null,null,null,0,{"$f":"IF(G27>0,G27*1000/$G$18,\"-\")","v":"-"}]
["R1 value",null,null,null,null,null,"Design / Operational / n/a"]
[]
["Waste Disposal & Recovery","Unit","Q1","Q2","Q3","Q4","Year Total","% inputs"]
["APC Residues - produced","tonnes",789,722,871,727,{"$f":"SUM(C31:F31)","v":3109},{"$f":"IF(G31>0,G31/$G$15,\"-\")","v":3.2590123379141904E-2}]
["IBA - produced",null,4289,3675,4402,3647,16013,{"$f":"IF(G32>0,G32/$G$15,\"-\")","v":0.1678564315439689}]
["Metals recycling",null,521,308,370,429,{"$f":"SUM(C33:F33)","v":1628},{"$f":"IF(G33>0,G33/$G$15,\"-\")","v":1.7065526169586044E-2}]
[]
["Raw Material Usage","Unit","Q1","Q2","Q3","Q4","Year Total","kg or Ltr /te"]
["Mains Water","M3",14258,15633,19832,19908,{"$f":"SUM(C36:F36)","v":69631},{"$f":"IF(G36>0,G36/$G$15,\"-\")","v":0.7299076490874975}]
["Other Water","ltrs",0,0,0,0,0,{"$f":"IF(G37>0,G37/$G$15,\"-\")","v":"-"}]
["Ammonia","kgs",0,0,0,0,0,{"$f":"IF(G38>0,G38/$G$15,\"-\")","v":"-"}]
["Urea","kgs",52000,42000,42000,33000,{"$f":"SUM(C39:F39)","v":169000},{"$f":"IF(G39>0,G39/$G$15,\"-\")","v":1.7715441785381092}]
["Activated Carbon","kgs",3000,3000,3000,2500,11500,{"$f":"IF(G40>0,G40/$G$15,\"-\")","v":0.12054886422004885}]
["Lime / hydrated lime","kgs",226200,253300,273500,222020,975020,10.220656834072351]
["Fuel oil","ltrs",8810,29518,2840,13441616,13482784,141.3334171934128]
["Gas","cf",null,0,0,0,0,"-"]
["HCL","ltrs",3830,4510,10180,9790,28310,0.29675985617996375]
["Caustic Soda","litres",4560,6665,10345,9246,30816,0.32302902607000222]
["O2 Reducer ","litres",583,455,903,340,2281,2.3910605155298383E-2]
["Phosphate","litres",135,61,370,580,1146,1.2012956382276173E-2]
[null,null,1]
["Summary ","Line/Unit","Kate Harrop","Q2","Q3","Q4","Year Total",null,null,"Hrs in year "]
["Availability of waste combustion by line, hrs",1,2129.5,1716.25,2202.5,1935,{"$f":"SUM(C50:F50)","v":7983.25},{"$f":"(G50)/J50","v":0.91132990867579911},null,8760]
[null,2,2156,1807.25,2109.5,2012.05,{"$f":"SUM(C51:F51)","v":8084.8},{"$f":"(G51)/J50","v":0.92292237442922376}]
["Overall Availability, mean avg. of all lines, hrs",null,{"$f":"AVERAGE(C50:C51)","v":2142.75},1761.75,2156,1973.5250000000001,{"$f":"AVERAGE(G50:G51)","v":8034.0249999999996},{"$f":"(G52)/J50","v":0.91712614155251138}]
["Hours of turbine operations, hrs",1,44957,1854,2192.5,2012.75,51016.25,{"$f":"G53/J50","v":5.8237728310502286}]
["Hours of heat / steam export",null,null,null,null,null,0,{"$f":"IF(B54>0,#REF!/J50,\"n/a\")","v":"n/a"}]
["Net Calorific Value of waste","MJ/kg",24.5,24.5,24.38,24.13,null,"-"]
["Abnormal Events","qty.",1,0,0,0,1,{"$f":"IF(G56>0,\"yes\",\"no\")","v":"yes"}]
["Abnormal operation","hours",1,0,0,0,1,{"$f":"+(G57)/J50","v":1.1415525114155251E-4}]
["Permit Breaches","qty.",4,4,3,13,24,{"$f":"IF(G58>0,\"yes\",\"no\")","v":"yes"}]

{"sheet":"Operational Summary","index":4,"n_rows":31,"n_cols":11,"rows_kept":31,"cut":false,"hidden":false,"merged":[[30,0,51,8],[30,10,39,13],[4,0,26,8]]}
[{"$f":"+'Cover Page'!$B$29","v":"Annual Performance Report 2022"},null,null,null,{"$f":"'Operational Data'!E1","v":"Dudley EfW"}]
[]
["Summary of Plant Operations and Maintenance during the reporting year",null,null,null,null,null,null,null,null,null,"Notes:"]
[]
["In March 2022, MES Environmental's parent company CNIM went into receivership. In October, MES Environmental Ltd went into liquidation, and the environmental permit was transferred to North Midlands Operations Ltd.\nMES Environmental Ltd staff were TUPE'd over to NMOL, allowing for continuity of day-to-day operation. \nHowever, it was announced in December that Dudley Metropolitan Borough Council was terminating their contract with Dudley Waste Services Ltd, and that the operation of the plant would be transferred to Urbaser on 14th February 2023.\nThe Dudley staff will be TUPE'd over to Urbaser at handover.\n\nDue to the contractual and financial uncertainties and challenges during 2022, it seems that investment in improvements was limited.\n \n• In overall 2022, the overall boilers availability was 91.7%. Tube leaks were a primary cause of downtime during 2022. The turbine unavailability was a good 93.59%.\n• Extensive scheduled maintenance was undertaken at the plants annual planned shutdown period:\no Boilers thorough inspections performed. Thin pipes and worn refractory renewed. \no Soot blowers and air hammers inspected and maintained. \no Combustion system thoroughly inspected and worn parts replaced. \no Auxiliary burners inspected and serviced. \no Hydraulic packs serviced. \no Both boiler pressure relief valves serviced. \no Common vessels and main valves inspected. \no Bag house filters and scrubbers cleaned, inspected and repaired where needed. The program of bags replacement continued. \no Ducting and expansion joints inspections and repairs made. \no Fly ash and bottom ash conveyors inspected and serviced. \no Lime, urea and activated carbon systems cleaned and inspected. \no Main fans and pumps inspected and serviced. The main electrical motors have been tested. \no The main instrumentation has been calibrated. \no Turbine, generator and gearbox serviced. Turbine blading borescope inspection carried out. Generator electrical test performed. \no Main electrical systems inspected and tested.",null,null,null,null,null,null,null,null,null,"Include summary of key operational and/or maintenance activity undertaken in the year, such as any major component upgrades and/or replacements "]
[]
[]
[]
[]
[]
[]
[]
[]
[]
[]
[]
[]
[]
[]
[]
[]
[]
[]
[]
[]
[]
[]
[]
["Summary of Residue Handling for the reporting year"]
[]
["There are two main sources of residue that arise from the operation of the plant;  Incinerator Bottom ash (IBA) (which also includes ferrous metals discharged within the ash), and residues from the flue gas treatment system - known as Air Pollution Control residue (APCr).\n\nResidues from the flue gas treatment process (APCr) are discharged into an enclosed system which feed into double-skinned heavy-duty bags prior to removal from site for controlled treatment and disposal.  These residues account for around 5% of the total weight of all refuse processed by the facility.\n\nThe bottom ash produced by the site represents around 10% of the original volume of the refuse processed, and around 20% of its weight.  Bottom ash residues are discharged from the lower end of each grate into a water filled ash discharger, where it is quenched and then ejected onto a conveyor system. Larger items are screened out and ferrous metals are removed via magnetic separation.  \n\nThe resulting material is stored in the storage bunkers prior to removal from site for recycling - the storage capacity for bottom ash residues and separated ferrous metals is sufficient to ensure 4 days storage. Collections for delivery to further processing or treatment sites are made on Mondays to Fridays and are scheduled to ensure sufficient storage capacity is maintained at all times. Collections are available at weekends if operational conditions require this facility.\n\nBottom ash is now widely used in the UK and Europe as a substitute for valuable primary aggregate materials in the construction of roads and embankments.  Bottom ash from North Midlands Operations Ltd is currently being reprocessed, with additional ferrous and trace metals being removed, and the remaining material being further processed into usable aggregate in a zero to landfill process.",null,null,null,null,null,null,null,null,null,"Include in here a summary of residue handling regimes and destinations "]

{"sheet":"Perf. Form 1","index":5,"n_rows":52,"n_cols":10,"rows_kept":52,"cut":false,"hidden":false,"merged":[[45,0,45,1],[47,0,47,9],[48,0,49,9],[36,0,36,9],[37,0,38,9],[41,0,41,1],[41,2,41,9],[43,0,43,1],[44,0,44,1],[34,0,34,3],[34,4,34,5],[34,7,34,8],[35,0,35,3],[35,4,35,5],[35,7,35,8],[32,0,32,3],[32,4,32,5],[32,7,32,8],[33,0,33,3],[33,4,33,5],[33,7,33,8],[31,0,31,3],[31,4,31,5],[31,7,31,8],[23,0,23,9],[24,0,26,9],[29,0,29,3],[29,7,29,8],[30,0,30,3],[30,4,30,5],[30,7,30,8],[2,0,2,4],[2,6,2,8],[3,1,3,4],[8,0,8,1],[9,0,9,1],[8,4,8,5],[9,4,9,5],[8,8,8,9],[9,8,9,9],[5,3,5,4],[5,6,5,7],[8,2,8,3],[9,2,9,3],[10,2,10,3],[11,2,11,3],[12,2,12,3],[10,4,10,5],[11,4,11,5],[12,4,12,5],[14,0,14,1],[15,0,15,1],[14,4,14,5],[15,4,15,5],[10,0,10,1],[11,0,11,1],[12,0,12,1],[21,0,21,1],[14,2,14,3],[15,2,15,3],[16,2,16,3],[17,2,17,3],[18,2,18,3],[19,2,19,3],[16,0,16,1],[17,0,17,1],[18,0,18,1],[19,0,19,1],[20,0,20,1],[16,4,16,5],[17,4,17,5],[18,4,18,5],[19,4,19,5],[20,4,20,5],[21,4,21,5],[20,2,20,3],[21,2,21,3],[8,6,8,7],[9,6,9,7],[10,6,10,7],[11,6,11,7],[12,6,12,7],[14,6,14,7],[15,6,15,7],[16,6,16,7],[17,6,17,7],[18,6,18,7],[19,6,19,7],[20,6,20,7],[21,6,21,7],[10,8,10,9],[11,8,11,9],[12,8,12,9],[14,8,14,9],[15,8,15,9],[21,8,21,9],[16,8,16,9],[17,8,17,9],[18,8,18,9],[19,8,19,9],[20,8,20,9]]}
[{"$f":"+'Cover Page'!C39","v":2022}," Annual Reporting Performance Form 1"]
[]
[{"$f":"+'Cover Page'!B31","v":"Permit EPR/HP3247QS"},null,null,null,null,"Operator: ",{"$f":"+'Cover Page'!B37:I37","v":0}]
["Facility:",{"$f":"+'Cover Page'!B33:I33","v":"Dudley Energy from Waste Facility"},null,null,null,"Form:","Performance 1"]
[]
["Reporting  Period from: ",null,null,"2022-01-01",null,"to:","2022-12-31"]
[]
[{"$f":"+A1","v":2022},"Annual Reporting of Waste Disposal and Recovery"]
["Waste Description",null,"Disposal Route(s)",null,"Disposal Tonnes",null,"Recovery Tonnes",null,"% / tonne of waste incinerated"]
["1) Hazardous Wastes"]
["APC Residues",null,null,null,{"$f":"'Operational Data'!G31","v":3109},null,0,null,{"$f":"IF((E11+G11)>0,(E11+G11)/'Operational Data'!$G$18, \"-\")","v":4.2414155332123712E-2}]
["IBA",null,null,null,0,null,0,null,{"$f":"IF((E12+G12)>0,(E12+G12)/'Operational Data'!$G$18, \"-\")","v":"-"}]
["Total Hazardous Waste",null,null,null,{"$f":"SUM(E11:F12)","v":3109},null,{"$f":"SUM(G11:H12)","v":0},null,{"$f":"IF((E13+G13)>0,(E13+G13)/'Operational Data'!$G$18, \"-\")","v":4.2414155332123712E-2}]
[]
["2) Non-Hazardous Wastes"]
["IBA",null,null,null,0,null,{"$f":"'Operational Data'!G32","v":16013},null,{"$f":"IF((E16+G16)>0,(E16+G16)/'Operational Data'!$G$18, \"-\")","v":0.2184554098852676}]
["Ferrous Metal",null,null,null,0,null,{"$f":"'Operational Data'!G33","v":1628},null,{"$f":"IF((E17+G17)>0,(E17+G17)/'Operational Data'!$G$18, \"-\")","v":2.2209792499420199E-2}]
["Process Water",null,null,null,0,null,0,null,{"$f":"IF((E18+G18)>0,(E18+G18)/'Operational Data'!$G$18, \"-\")","v":"-"}]
[null,null,null,null,null,null,null,null,{"$f":"IF((E19+G19)>0,(E19+G19)/'Operational Data'!$G$18, \"-\")","v":"-"}]
[null,null,null,null,null,null,null,null,{"$f":"IF((E20+G20)>0,(E20+G20)/'Operational Data'!$G$18, \"-\")","v":"-"}]
["Total Non-Hazardous Waste",null,null,null,{"$f":"SUM(E16:F20)","v":0},null,{"$f":"SUM(G16:H20)","v":17641},null,{"$f":"IF((E21+G21)>0,(E21+G21)/'Operational Data'!$G$18, \"-\")","v":0.2406652023846878}]
["TOTAL WASTE",null,null,null,{"$f":"+E21+E13","v":3109},null,{"$f":"+G21+G13","v":17641},null,{"$f":"IF((E22+G22)>0,(E22+G22)/'Operational Data'!$G$18, \"-\")","v":0.28307935771681153}]
[]
["Operator’s comments :"]
[]
[]
[]
[]
[{"$f":"+A1","v":2022},"Annual Reporting of Water and Other Raw Material Usage"]
["Raw Material",null,null,null,"Usage",null,"Unit","Specific Useage",null,"Unit"]
["Mains Water",null,null,null,{"$f":"+'Operational Data'!G36","v":69631},null,"m3",{"$f":"IF(E31>0,E31/'Operational Data'!$G$18,\"-\")","v":0.94993247022550853},null,"m3/te"]
["Total Water",null,null,null,{"$f":"+'Operational Data'!G37+'Operational Data'!G36","v":69631},null,"m3",{"$f":"IF(E32>0,E32/'Operational Data'!$G$18,\"-\")","v":0.94993247022550853},null,"m3/te"]
["Urea / Ammonia",null,null,null,{"$f":"'Operational Data'!G39","v":169000},null,"kg",{"$f":"IF(E33>0,E33/'Operational Data'!$G$18,\"-\")","v":2.3055619977899346},null,"kg/te"]
["Activated Carbon",null,null,null,{"$f":"+'Operational Data'!G40","v":11500},null,"kg",{"$f":"IF(E34>0,E34/'Operational Data'!$G$18,\"-\")","v":0.15688735487919675},null,"kg/te"]
["Lime / hydrated lime / Sodium Bicarb.",null,null,null,{"$f":"+'Operational Data'!G41","v":975020},null,"kg",{"$f":"IF(E35>0,E35/'Operational Data'!$G$18,\"-\")","v":13.301592065592557},null,"kg/te"]
[]
["Operator’s comments :"]
[]
[]
[]
[{"$f":"+A29","v":2022},"Annual Reporting of other performance indicators "]
["Parameter",null,"Results by Line"]
[null,null,"A1","A2",null,null,null,null,"Turbine 1"]
["Operating hours for the year, hours",null,{"$f":"'Operational Data'!G50","v":7983.25},{"$f":"'Operational Data'!G51","v":8084.8},null,null,null,null,{"$f":"'Operational Data'!G53","v":51016.25}]
["Number of periods of abnormal operation, qty.",null,1,1]
["Cumulative hours of abnormal operation for this year, hours",null,0.5,0.5]
[]
["Operator’s comments :"]
[]
[]
[]
["Signed: ",null,null,null,null,null,"Date:"]

{"sheet":"Energy Form 1","index":6,"n_rows":53,"n_cols":7,"rows_kept":53,"cut":false,"hidden":false,"merged":[[2,6,2,8],[4,1,4,4],[8,0,8,2],[9,0,9,2],[10,0,10,2],[8,6,8,8],[9,6,9,8],[10,6,10,8],[6,3,6,4],[6,6,6,7],[8,3,8,4],[9,3,9,4],[10,3,10,4],[11,3,11,4],[12,3,12,4],[11,6,11,8],[12,6,12,8],[13,6,13,8],[17,0,17,8],[18,0,24,8],[14,0,15,8],[11,0,11,2],[12,0,12,2],[13,0,13,2],[13,3,13,4]]}
[{"$f":"+'Cover Page'!C39","v":2022}," Annual Reporting of Energy Usage/Export"]
[]
[{"$f":"+'Cover Page'!B31","v":"Permit EPR/HP3247QS"},null,null,null,null,"Operator: ",{"$f":"+'Cover Page'!B37:I37","v":0}]
[]
["Facility:",{"$f":"+'Cover Page'!B33:I33","v":"Dudley Energy from Waste Facility"},null,null,null,"Form:","Energy 1"]
[]
["Reporting  Period from: ",null,null,{"$f":"+'Perf. Form 1'!D6:E6","v":"2022-01-01"},null,"to:",{"$f":"+'Perf. Form 1'!G6:H6","v":"2022-12-31"}]
[]
["Energy Source",null,null,"Energy Usage",null,"Unit","Specific Useage (KWh/tonne incinerated"]
["Electricity Produced",null,null,{"$f":"+'Operational Data'!G21","v":40862},null,"MWh",{"$f":"+'Operational Data'!H21","v":557.45487783249882}]
["Electricity Imported   ",null,null,{"$f":"+'Operational Data'!G24","v":233},null,"MWh",{"$f":"+'Operational Data'!H24","v":3.1786742336393772}]
["Electricity Exported",null,null,{"$f":"+'Operational Data'!G22","v":33819},null,"MWh",{"$f":"+'Operational Data'!H22","v":461.37160475300476}]
["Gas Oil",null,null,null,null,"tonnes"]
["Steam/hot water exported",null,null,{"$f":"+'Operational Data'!G27","v":0},null,"GWh",{"$f":"+'Operational Data'!H27","v":"-"}]
[]
[]
[]
["Operator’s comments :"]
[]
[]
[]
[]
[]
[]
[]
[]
[]
[]
["Signed: ",null,null,null,null,null,"Date:"]
[]
[]
[]
[]
[]
[]
[]
[]
[]
[]
[]
[]
[]
[]
[]
[]
[]
[]
[]
[null,null,"Kate Harrop",null,null,null,"Quality & Environmental Manager"]
[]
[]
[]
[null,null,"2023-01-31"]

{"sheet":"Permit Compliance","index":7,"n_rows":54,"n_cols":12,"rows_kept":54,"cut":false,"hidden":false,"merged":[[47,1,47,3],[47,4,47,6],[47,7,47,9],[48,1,48,3],[48,4,48,6],[48,7,48,9],[43,1,43,3],[44,1,44,3],[44,4,44,6],[44,7,44,9],[41,1,41,3],[42,1,42,3],[46,0,46,10],[26,1,26,3],[27,1,27,3],[28,1,28,3],[29,1,29,3],[33,4,37,6],[33,7,37,9],[31,7,31,8],[32,7,32,8],[30,1,30,3],[30,7,30,8],[30,4,30,6],[41,4,43,6],[41,7,43,9],[39,1,39,3],[40,1,40,3],[52,1,52,3],[52,4,52,6],[52,7,52,9],[49,1,49,3],[49,4,49,6],[49,7,49,9],[50,1,50,3],[50,4,50,6],[50,7,50,9],[51,1,51,3],[51,4,51,6],[51,7,51,9],[53,4,53,8],[25,1,25,3],[25,7,25,8],[26,7,26,8],[25,4,25,6],[26,4,26,6],[31,4,31,6],[32,4,32,6],[27,7,29,8],[27,4,29,6],[31,1,31,3],[32,1,32,3],[33,1,33,3],[34,1,34,3],[36,1,36,3],[35,1,35,3],[39,4,39,6],[40,4,40,6],[39,7,39,9],[40,7,40,9],[38,1,38,3],[38,4,38,6],[38,7,38,8],[9,0,9,1],[10,0,10,1],[11,0,11,1],[12,0,12,1],[13,0,13,1],[10,5,10,8],[11,5,11,8],[19,1,19,3],[19,4,19,6],[19,7,19,8],[14,0,14,1],[15,0,15,1],[12,2,12,4],[13,2,13,4],[14,2,14,4],[15,2,15,4],[16,2,16,4],[12,5,12,8],[7,0,7,1],[16,0,16,1],[20,4,22,6],[20,7,22,8],[24,7,24,8],[13,5,13,8],[14,5,14,8],[15,5,15,8],[16,5,16,8],[7,2,7,8],[8,2,8,4],[8,5,8,8],[9,2,9,4],[10,2,10,4],[11,2,11,4],[9,5,9,8]]}
[{"$f":"+'Cover Page'!$B$29","v":"Annual Performance Report 2022"},null,null,null,{"$f":"+'Cover Page'!$B$33","v":"Dudley Energy from Waste Facility"}]
[]
["Summary of Permit Compliance"]
[]
["Compliance with permit limits for continuously monitored pollutants"]
[]
["The plant met its emission limits as shown in the table below:"]
["Substance",null,"Percentage time compliant during operation",null,null,null,null,null,null,null,null,"Notes:"]
[null,null,"Half-hourly limit",null,null,"Daily limit",null,null,null,null,null,"Report to 2 decimal places, i.e. xx.xx%\n\nPlease provide a brief summary of each notification or non-compliance in the table (rather than just referring to notifications that were sent to the Regulator).  \n\n"]
["Particulates",null,1,null,null,1]
["Oxides of nitrogen",null,0.99980000000000002,null,null,1]
["Sulphur dioxide",null,0.99980000000000002,null,null,1]
["Carbon monoxide",null,0.99919999999999998,null,null,0.98899999999999999]
["Total organic carbon",null,0.99990000000000001,null,null,1]
["Hydrogen chloride",null,0.99950000000000006,null,null,0.99180000000000001]
["Hydrogen fluoride",null,1,null,null,1]
["Average",null,0.99980000000000002,null,null,0.99729999999999996]
[]
["Summary of any notifications or non-compliances under the permit"]
["Date","Summary of notification or non-compliance [including Line/Reference]",null,null,"Reason ",null,null,"Measures taken to prevent reoccurrence"]
["2022-01-13","NOx 1/2hrly ELV breach (552.19 mg/m3)",null,null,"Feeder forward limit issues",null,null,"Feeder limit repaired"]
["2022-01-13","VOC 1/2hrly ELV breach (51.02 mg/m3)"]
["2022-01-13","CO daily ELV breach (51.94 mg/m3)"]
["2022-03-09","NOx 1/2hrly ELV breach (408.85 mg/m3)",null,null,"Blockage in urea pipework",null,null,"Cleared blockage"]
["2022-04-02","HCL daily ELV breach (11.13 mg/m3)",null,null,"Poor quality waste ",null,null,"Increase in waste mixing and used oil burner to support combustion"]
["2022-04-07","SO2 1/2 hrly ELV breach (285.92 mg/m3)",null,null,"Poor quality waste ",null,null,"Lime control valves opened "]
["2022-04-12","NOx 1/2 hrly ELV breach (419.75 mg/m3)",null,null,"Complete plant trip due to switching operations by western power distribution",null,null,"Lime system found to have tripped so put back into service"]
["2022-04-15","HCL 1/2 hrly ELV breach (67.26 mg/m3)",null,null,"Poor quality waste ",null,null,"Increase lime slurry flow & waste mixing"]
["2022-08-17","SO2 1/2 hrly ELV breach (241.12 mg/m3)"]
["2022-08-17","SO2 1/2 hrly ELV breach (270.2 mg/m3)"]
["2022-08-19","HCL 1/2 hrly ELV breach (67.19 mg/m3)",null,null,"7 minute stoppage to lime turbine plus acid producing fuel source",null,null,"Increase running time with reduced HCl setpoint prior to stopping turbine"]
["2022-09-17","HCL 1/2 hrly ELV breach (70.93 mg/m3)",null,null,"Poor quality waste ",null,null,"Lime control valves opened "]
["2022-10-18","HCL 1/2 hrly ELV breach (113.05 mg/m3)",null,null,"Clogged lime turbine",null,null,"Lime control valves opened initially, unit taken offline to repair "]
["2022-10-24","CO daily ELV breach (50.59 mg/m3)",null,null,"Wet waste causing erratic steam flow",null,null,"Reduction in steam flow set point to limit waste on grate and increase combustion time for waste"]
["2022-10-24","CO 10-min ELV breach "]
["2022-10-25","CO 10-min ELV breach "]
["2022-10-25","CO daily ELV breach (90.98 mg/m3)"]
["2022-10-29","CO daily ELV breach (51.36 mg/m3)"]
["2022-10-25","Periodic testing: Stack A1 Breach in metals ELV (0.697mg/m3)",null,null,"Unclear",null,null,"Results of periodic testing were not made available to NMOL until 25/01/2023 so no investigation could be undertaken "]
["2022-11-02","HCL 1/2 hrly ELV breach (66.58 - 73.22 mg/m3)",null,null,"Poor quality waste ",null,null,"Stabilise combustion"]
["2022-12-17","HCL daily ELV breach (10.3 mg/m3)",null,null,"Blockage in dilution and lime supply",null,null,"Backflushed lime supply pipework"]
["2022-12-18","HCL 1/2 hrly ELV breach (78.11 mg/m3)",null,null,"shredded waste causing potential flash burning",null,null,"Increase waste mixing "]
["2022-12-19","HCL 1/2 hrly ELV breach (66.45mg/m3)"]
["2022-12-19","HCL 1/2 hrly ELV breach (62.58 mg/m3)"]
["2022-12-31","HCL daily ELV breach (12.31 mg/m3)",null,null,"Flowmeter of lime slurry incorrectly reporting ",null,null,"Repaired"]
[]
["Summary of any complaints received and actions to taken to resolve them."]
["Date","Summary of complaint [including Line/Reference]",null,null,"Reason *",null,null,"Measures taken to prevent reoccurrence"]
[null,"None received in 2022"]
[]
[]
[]
[]
[null,null,null,null,"* including whether substantiated by the operator or the EA"]

{"sheet":"Improvements","index":8,"n_rows":39,"n_cols":5,"rows_kept":39,"cut":false,"hidden":false,"merged":[[37,0,37,9],[38,0,47,9],[4,0,4,9],[26,0,26,9],[27,0,35,9],[5,0,13,9],[15,0,15,9],[16,0,24,9]]}
[{"$f":"+'Cover Page'!$B$29","v":"Annual Performance Report 2022"},null,null,null,{"$f":"+'Cover Page'!$B$33","v":"Dudley Energy from Waste Facility"}]
[]
["Summary of Plant Improvements"]
[]
["Summary of any efficiency improvements that have been completed within the year."]
["• LED lamp replacement is an ongoing project.\n• Continued the replacement program of damaged lagging.\n• See Operational Summary for explanation about limited plant improvement activities in 2022.\n"]
[]
[]
[]
[]
[]
[]
[]
[]
[]
["Summary of any permit improvement conditions that have been completed within the year and the resulting environmental benefits."]
["None. IC1-IC5 are currently being worked on - e.g. NOx abatement trials, Hg and D&F testing, calculation of GEE etc. All findings from MESE and NMOL have been handed to Urbaser for completion. "]
[]
[]
[]
[]
[]
[]
[]
[]
[]
["Summary of any changes to the plant or operating techniques which required a variation to the permit and a summary of the resulting environmental impact."]
["No variations were made to the permit in 2022. However, it should be noted that use of the waste bunker permitted by the 1996 Waste Management Licence (SL 2028) ceased under North Midlands Operations Ltd - as no attempt to transfer it was made."]
[]
[]
[]
[]
[]
[]
[]
[]
[]
["Summary of any other improvements made to the plant or planned to be made and a summary of the resulting environmental benefits."]
["•  Activated carbon system refurbished to prevent fugitive emissions.\n•  Commissioned reprogramming of lime abatement system shutdown sequence to ensure the system shuts down empty. This reduces the risk of fugitive emissions and reduces chemical consumption.   \t\t\t\t\t\t\t\t\n\t\t\t\t\t\t\t\t\t\t\t\t"]

{"sheet":"Public Liasion","index":9,"n_rows":53,"n_cols":7,"rows_kept":53,"cut":false,"hidden":false,"merged":[[25,0,26,1],[25,2,26,9],[28,0,28,9],[15,0,15,9],[6,2,7,9],[8,2,9,9]]}
[{"$f":"+'Cover Page'!$B$29","v":"Annual Performance Report 2022"},null,null,null,{"$f":"+'Cover Page'!$B$33","v":"Dudley Energy from Waste Facility"}]
[]
["Details of Public & Stakeholder Liasion"]
[]
["Summary of events held during the reporting year."]
["Date",null,"Description"]
["Jan 22 - Oct 22",null,"MESE conducted monthly meetings with its core stakeholders in order discuss operational, health and safety, and environmental performance."]
[]
["Nov 22- Dec 22",null,"NMOL conducted monthly meetings with its core stakeholders in order discuss operational, health and safety, and environmental performance."]
[]
[]
[]
[]
[]
[]
["List of events planned for next year"]
["Date",null,"Description"]
[2023,null,"NMOL will continue to meet with its core stakeholders on a monthly basis."]
[]
[2023,null,"NMOL to launch company website."]
[]
[]
[]
[]
[]
[]
[]
[]
["If you wish to be involved in the public liasion programme, please contact _________________"]
[]
[]
[]
[]
[]
[]
[]
[]
[]
[]
[]
[]
[]
[]
[]
[]
[]
[]
[]
[null,null,"Kate Harrop",null,null,null,"Quality & Environmental Manager"]
[]
[]
[]
[null,null,"2023-01-31"]

{"sheet":"Residue Quality ","index":10,"n_rows":53,"n_cols":7,"rows_kept":53,"cut":false,"hidden":false,"merged":[[35,0,40,6],[32,3,32,4],[34,0,34,6],[27,0,28,1],[29,0,29,1],[30,0,30,1],[31,0,31,1],[32,0,32,1],[29,3,29,4],[30,3,30,4],[29,5,29,6],[30,5,30,6],[31,5,31,6],[32,5,32,6],[31,3,31,4],[27,2,28,2],[28,3,28,4],[28,5,28,6],[27,3,27,6],[26,0,26,6],[5,0,10,6],[12,0,12,6]]}
[{"$f":"+'Cover Page'!$B$29","v":"Annual Performance Report 2022"},null,null,null,{"$f":"+'Cover Page'!$B$33","v":"Dudley Energy from Waste Facility"}]
[]
["Residue Quality Monitoring Requirements"]
[]
["Summary of monitoring undertaken and compliance"]
["Ash monitoring has been undertaken in line with the permit.  IBA has been sampled on a monthly basis to inform hazard assessment, while APCr has been monitored on a quarterly basis"]
[]
[]
[]
[]
[]
[]
["Commentary on any specific events"]
["Date & Event",null,"Description"]
[]
[]
[]
[]
[]
[]
[]
[]
[]
[]
[]
[]
["Residue Quality Monitoring Results"]
["Parameter (unit) ",null,"Limit","Normal Operation "]
[null,null,null,"Bottom ash  ",null,"APC Residues"]
["Loss on Ignition (average %)",null,"<5%",7.28]
["Total Organic Carbon (average %)",null,"<3%",1.03]
["No. of Assessments Undertaken",null,"---",6,null,4]
["No. of Hazardous Results",null,"---",0]
[]
["Comments :"]
[]
[]
[]
[]
[]
[]
[]
[]
[]
[]
[]
[]
[]
[null,null,"Kate Harrop",null,null,null,"Quality & Environmental Manager"]
[]
[]
[]
[null,null,"2023-01-31"]

{"sheet":"Water","index":11,"n_rows":53,"n_cols":10,"rows_kept":53,"cut":false,"hidden":false,"merged":[[29,0,29,2],[29,3,29,5],[26,0,26,2],[26,3,26,5],[27,0,27,2],[27,3,27,5],[28,0,28,2],[28,3,28,5],[24,0,24,2],[24,3,24,5],[25,0,25,2],[25,3,25,5],[12,0,12,9]]}
[{"$f":"+'Cover Page'!$B$29","v":"Annual Performance Report 2022"},null,null,null,{"$f":"+'Cover Page'!$B$33","v":"Dudley Energy from Waste Facility"}]
[]
["Emissions to Water"]
[]
["Summary of monitoring undertaken and compliance"]
["N/A"]
[]
[]
[]
[]
[]
[]
["Commentary on any specific events"]
["Date & Event",null,"Description"]
[]
[]
[]
[]
[]
[]
[]
["Emissions to Water / Sewer"]
["Parameter",null,null,"Monitoring Frequency",null,null,"Limit","Target","Max.","Average"]
[]
[]
[]
[]
[]
[]
[]
[]
[]
[]
[]
[]
[]
[]
[]
[]
[]
[]
[]
[]
[]
[]
[]
[]
[]
[null,null,"Kate Harrop",null,null,null,"Quality & Environmental Manager"]
[]
[]
[]
[null,null,"2023-01-31"]

{"sheet":"Air (periodic)","index":12,"n_rows":53,"n_cols":13,"rows_kept":53,"cut":false,"hidden":false,"merged":[[27,3,27,4],[33,3,33,4],[24,3,24,4],[31,3,31,4],[25,3,25,4],[26,3,26,4],[28,3,28,4],[30,3,30,4],[36,3,36,4],[38,0,38,9],[34,3,34,4],[35,3,35,4],[33,0,33,1],[34,0,34,1],[35,0,35,1],[36,0,36,1],[13,0,13,1],[14,0,14,1],[24,0,24,1],[32,3,32,4],[39,0,40,9],[25,0,25,1],[26,0,26,1],[37,0,37,1],[27,0,27,1],[28,0,28,1],[29,0,29,1],[30,0,30,1],[31,0,31,1],[32,0,32,1],[37,3,37,4],[29,3,29,4],[18,3,18,4],[19,3,19,4],[15,0,15,1],[16,0,16,1],[17,0,17,1],[18,0,18,1],[19,0,19,1],[13,3,13,4],[14,3,14,4],[15,3,15,4],[16,3,16,4],[17,3,17,4],[8,0,8,6],[9,2,10,2],[9,3,10,4],[11,3,11,4],[12,3,12,4],[9,0,10,1],[11,0,11,1],[12,0,12,1],[20,3,20,4],[21,3,21,4],[22,3,22,4],[23,3,23,4],[20,0,20,1],[21,0,21,1],[22,0,22,1],[23,0,23,1]]}
[{"$f":"+'Cover Page'!$B$29","v":"Annual Performance Report 2022"},null,null,null,{"$f":"+'Cover Page'!$B$33","v":"Dudley Energy from Waste Facility"}]
[]
["Emissions to Air (periodically monitored)"]
[]
["Summary of monitoring undertaken, standards used and compliance",null,null,null,null,null,null,null,null,null,null,null,"Notes:"]
["Quarterly monitoring undertaken in line with permit. ",null,null,null,null,null,null,null,null,null,null,null,"Template may require adjustment for any bespoke monitoring requirements of permit. "]
[]
[]
["Results of emissions to air that are periodically monitored"]
["Substance",null,"Ref. Period","Emission Limit Value",null,"Average",null,null,null,null,null,null,"User to add additional tables as necessary, depending on whether quarterly or bi-annual reporting is required for the compliance year"]
[null,null,null,null,null,"A1","A2"]
["Hydrogen fluoride",null,"1 hr","2 mg/m3",null,0.25,0.25]
["Cd and Th and their compounds",null,"6-8hrs","0.05 mg/m3",null,1E-3,1E-3]
["Hg and its compounds",null,"6-8hrs","0.05 mg/m3",null,8.0000000000000002E-3,2E-3]
["Sb, As, Pb, Cr, Co, Cu, Mn, Ni, V and their compounds",null,"6-8hrs","0.5 mg/m3",null,0.39,7.0000000000000007E-2]
["Dioxins & Furans (I-TEQ)",null,"6-8hrs","0.1 ng/m3",null,0.01,0.02]
["PCBs (WHO-TEQ Humans / Mammals)",null,"6-8hrs","None set ng/m3",null,1.6000000000000001E-3,9.5E-4]
["PCBs (WHO-TEQ Fish)",null,"6-8hrs","None set ng/m3",null,1E-4,6.9999999999999994E-5]
["PCBs (WHO-TEQ Birds)",null,"6-8hrs","None set ng/m3",null,1.4999999999999999E-2,2.7000000000000001E-3]
["Dioxins & Furans (WHO-TEQ Humans / Mammals)",null,"6-8hrs","None set ng/m3",null,1.0999999999999999E-2,2.1999999999999999E-2]
["Dioxins & Furans (WHO-TEQ Fish)",null,"6-8hrs","None set ng/m3",null,1.2999999999999999E-2,2.5000000000000001E-2]
["Dioxins & Furans (WHO-TEQ Birds)",null,"6-8hrs","None set ng/m3",null,0.02,0.04]
["Anthanthrene",null,"6-8hrs","None set µg/m3",null,"<0.0084","<0.0078"]
["Benzo(a)anthracene",null,"6-8hrs","None set µg/m3",null,"<0.0084","<0.0078"]
["Benzo(a)pyrene",null,"6-8hrs","None set µg/m3",null,"<0.0084","<0.0078"]
["Benzo(b)fluoranthene",null,"6-8hrs","None set µg/m3",null,"<0.0084","<0.0078"]
["Benzo(b)naptho(2,1-d) thiophene",null,"6-8hrs","None set µg/m3",null,1.29E-2,2.1999999999999999E-2]
["Benzo(c)phenanthrene",null,"6-8hrs","None set µg/m3",null,"<0.0084","<0.0078"]
["Benzo(ghi)perylene",null,"6-8hrs","None set µg/m3",null,9.1000000000000004E-3,"<0.0078"]
["Benzo(k)fluoranthene",null,"6-8hrs","None set µg/m3",null,"<0.0084","<0.0078"]
["Cholanthrene",null,"6-8hrs","None set µg/m3",null,"<0.0084","<0.0078"]
["Chrysene",null,"6-8hrs","None set µg/m3",null,1.32E-2,"<0.0078"]
["Cyclopenta(cd)pyrene",null,"6-8hrs","None set µg/m3",null,2.18E-2,"<0.0078"]
["Dibenzo(ai)pyrene",null,"6-8hrs","None set µg/m3",null,"<0.0084","<0.0078"]
["Dibenzo(ah)anthracene",null,"6-8hrs","None set µg/m3",null,"<0.0084","<0.0078"]
["Fluoranthene",null,"6-8hrs","None set µg/m3",null,0.157,3.7999999999999999E-2]
["Indeno(123-cd) pyrene",null,"6-8hrs","None set µg/m3",null,"<0.0084","<0.0078"]
["Naphthalene",null,"6-8hrs","None set µg/m3",null,0.28999999999999998,0.32]
["Comments :"]
[]
[]
[]
[]
[]
[]
[]
[]
[]
[null,null,"Kate Harrop",null,null,null,"Quality & Environmental Manager"]
[]
[]
[]
[null,null,"2023-01-31"]

{"sheet":"Air (CEMS)","index":13,"n_rows":53,"n_cols":16,"rows_kept":53,"cut":false,"hidden":false,"merged":[[26,0,26,12],[28,0,29,12],[5,0,6,12],[10,0,10,11],[11,0,12,0],[11,1,12,1],[11,2,12,2],[11,3,11,4],[11,5,11,6],[13,0,14,0],[15,0,16,0],[17,0,18,0],[19,0,20,0],[21,0,22,0],[23,0,24,0]]}
[{"$f":"+'Cover Page'!$B$29","v":"Annual Performance Report 2022"},null,null,null,null,null,null,null,{"$f":"+'Cover Page'!$B$33","v":"Dudley Energy from Waste Facility"}]
[]
["Emissions to Air (continously monitored)"]
[null,null,null,null,null,null,null,null,null,null,null,null,null,null,null,"Notes:"]
["Summary of monitoring undertaken, standards used and compliance",null,null,null,null,null,null,null,null,null,null,null,null,null,null,"Template may require adjustment for any bespoke monitoring requirements of permit"]
[null,null,null,null,null,null,null,null,null,null,null,null,null,null,null,"Report to 2 decimal places, i.e. xx.xx%"]
[]
[]
[]
[]
["Results of emissions to air that are continuously monitored (maximum and average values for each line)"]
["Substance","Reference Period","Emission Limit Value","A1",null,"A2"]
[null,null,null,"Max.","Avg.","Max.","Avg."]
["Oxides of nitrogen","Daily mean","200 mg/m3 ",{"$f":"NOx!O19","v":196},{"$f":"NOx!N19","v":178.08333333333334},{"$f":"NOx!O34","v":196},{"$f":"NOx!N34","v":179.08333333333334}]
[null,"½ hourly mean","400 mg/m3 ",{"$f":"NOx!M19","v":552},{"$f":"NOx!L19","v":178.25},{"$f":"NOx!M34","v":358},{"$f":"NOx!L34","v":178.91666666666666}]
["Particulates","Daily mean","10 mg/m3",{"$f":"Particulates!O19","v":2},{"$f":"Particulates!N19","v":0.17763564989371441},{"$f":"Particulates!O34","v":7},{"$f":"Particulates!N34","v":1.3833333333333335}]
[null,"½ hourly mean","30 mg/m3 ",{"$f":"Particulates!M19","v":28},{"$f":"Particulates!L19","v":0.33333333333333331},{"$f":"Particulates!M34","v":45},{"$f":"Particulates!L34","v":1.3333333333333333}]
["Total Organic Carbon ","Daily mean","10 mg/m3 ",{"$f":"TOC!O19","v":2},{"$f":"TOC!N19","v":1},{"$f":"TOC!O34","v":2},{"$f":"TOC!N34","v":1}]
[null,"½ hourly mean","20 mg/m3 ",{"$f":"TOC!M19","v":51},{"$f":"TOC!L19","v":0.83333333333333337},{"$f":"TOC!M34","v":29},{"$f":"TOC!L34","v":1}]
["Hydrogen chloride ","Daily mean","10 mg/m3 ",{"$f":"HCl!O19","v":13},{"$f":"HCl!N19","v":6.4575000000000005},{"$f":"HCl!O34","v":10},{"$f":"HCl!N34","v":6.0083333333333337}]
[null,"½ hourly mean","60 mg/m3 ",{"$f":"HCl!M19","v":113},{"$f":"HCl!L19","v":6.5},{"$f":"HCl!M34","v":67},{"$f":"HCl!L34","v":6}]
["Sulphur dioxide","Daily mean","50 mg/m3 ",{"$f":"'SO2'!O19","v":49},{"$f":"'SO2'!N19","v":12.525},{"$f":"'SO2'!O34","v":33},{"$f":"'SO2'!N34","v":9.0792597187758464}]
[null,"½ hourly mean","200 mg/m3 ",{"$f":"'SO2'!M19","v":286},{"$f":"'SO2'!L19","v":12.833333333333334},{"$f":"'SO2'!M34","v":270},{"$f":"'SO2'!L34","v":9.1666666666666661}]
["Carbon monoxide ","Daily mean","50 mg/m3 ",{"$f":"'CO 95% 10 min'!Q19","v":74},{"$f":"'CO 95% 10 min'!P19","v":7.4309453906617415},{"$f":"'CO 95% 10 min'!Q34","v":122},{"$f":"'CO 95% 10 min'!P34","v":10.803093330233672}]
[null,"95%ile 10-min avg *","150 mg/m3 *",{"$f":"'CO 95% 10 min'!M19","v":13.025},{"$f":"'CO 95% 10 min'!N19","v":7.5},{"$f":"'CO 95% 10 min'!M34","v":24.073333333333334},{"$f":"'CO 95% 10 min'!N34","v":12.416666666666666}]
[" Ammonia","Daily mean","No limit set",{"$f":"'NH3'!O19","v":10},{"$f":"'NH3'!N19","v":5.5135737820762847},{"$f":"'NH3'!O34","v":23},{"$f":"'NH3'!N34","v":4.3573227474437148}]
["* = delete or amend as appropriate"]
["Comments :"]
[]
[]
[]
[]
[]
[]
[]
[]
[]
[]
[]
[]
[]
[]
[]
[]
[]
[]
[]
[]
[null,null,"Kate Harrop",null,null,null,"Quality & Environmental Manager"]
[]
[]
[]
[null,null,"2023-01-31"]

{"sheet":"HCl","index":14,"n_rows":48,"n_cols":17,"rows_kept":48,"cut":false,"hidden":false,"merged":[[12,16,15,18],[51,9,63,9],[66,9,78,9],[4,9,4,14],[4,1,4,3],[4,4,4,6],[48,0,51,6],[47,0,47,6],[6,9,18,9],[21,9,33,9],[36,9,48,9],[3,16,7,18],[9,16,11,18]]}
[{"$f":"+'Cover Page'!$B$29","v":"Annual Performance Report 2022"},null,null,null,{"$f":"+'Cover Page'!$B$33","v":"Dudley Energy from Waste Facility"}]
[]
["Monitoring of Hydrogen Chloride emissions",null,null,"Whole Installation",null,null,"See  Notes in Cell Q3",null,null,{"$f":"+A3","v":"Monitoring of Hydrogen Chloride emissions"},null,null,null,"Per Combustion Line",null,null,"Notes:"]
[null,null,null,null,null,null,null,null,null,null,null,null,null,null,null,null,"User to add logic to complete Whole installation, Table A5:G18. From the data in Per Combustion Line, Table J6:O79, subject to No. of lines installed"]
["mg/Nm3","1/2 Hourly Reference Periods",null,null,"Daily Reference Periods"]
[{"$f":"+'Cover Page'!C39","v":2022},"1/2 hourly HCl ELV","Monthly 1/2 hourly mean","Highest 1/2 hourly maximum","Daily HCl ELV","Monthly daily mean","Highest daily maximum",null,null,{"$f":"+A6","v":2022},"mg/Nm3","Monthly 1/2 hourly mean","Monthly 1/2 hourly maximum","Monthly daily mean","Monthly daily maximum"]
["Jan",60,{"$f":"AVERAGE(L7,L22)","v":5},{"$f":"MAX(M7,M22)","v":30},10,{"$f":"AVERAGE(N7,N22)","v":4.87},{"$f":"MAX(O7,O22)","v":9},null,null,"A1","Jan",6,27,5.62,9]
["Feb",60,{"$f":"AVERAGE(L8,L23)","v":4.5},{"$f":"MAX(M8,M23)","v":51},10,{"$f":"AVERAGE(N8,N23)","v":4.835},{"$f":"MAX(O8,O23)","v":7},null,null,null,"Feb",5,51,5.35,7]
["Mar",60,7.5,44,10,7.1400000000000006,10,null,null,null,"Mar",8,41,7.67,10,null,"Whole Installation table A5:G18:"]
["Apr",60,7,67,10,6.8650000000000002,11,null,null,null,"Apr",7,54,7.2,11,null,"Mean: for 1/2 hourly and daily periods calculate mean of values across all operational combustion lines for the month"]
["May",60,6,41,10,5.8100000000000005,7,null,null,null,"May",6,27,5.55,7]
["Jun",60,7,46,10,6.5950000000000006,8,null,null,null,"Jun",7,46,6.86,8]
["Jul",60,6.5,58,10,6.625,9,null,null,null,"Jul",7,50,6.74,9,null,"Maximum: for 1/2 hourly and daily periods use the highest value across all operational combustion lines for the month"]
["Aug",60,6,67,10,6.415,8,null,null,null,"Aug",6,36,6.5,7]
["Sep",60,7,71,10,6.74,9,null,null,null,"Sep",7,71,6.76,9]
["Oct",60,7,113,10,7.0250000000000004,13,null,null,null,"Oct",7,113,7.17,13]
["Nov",60,5.5,73,10,5.3849999999999998,8,null,null,null,"Nov",6,73,5.48,8]
["Dec",60,6,78,10,6.49,12,null,null,null,"Dec",6,78,6.59,12]
[null,null,null,null,null,null,null,null,null,null,"Annual",{"$f":"AVERAGE(L7:L18)","v":6.5},{"$f":"MAX(M7:M18)","v":113},{"$f":"AVERAGE(N7:N18)","v":6.4575000000000005},{"$f":"MAX(O7:O18)","v":13}]
[]
[null,null,null,null,null,null,null,null,null,{"$f":"+A6","v":2022},"mg/Nm3","Monthly 1/2 hourly mean","Monthly 1/2 hourly maximum","Monthly daily mean","Monthly daily maximum"]
[null,null,null,null,null,null,null,null,null,"A2","Jan",4,30,4.12,6]
[null,null,null,null,null,null,null,null,null,null,"Feb",4,27,4.32,6]
[null,null,null,null,null,null,null,null,null,null,"Mar",7,44,6.61,8]
[null,null,null,null,null,null,null,null,null,null,"Apr",7,67,6.53,10]
[null,null,null,null,null,null,null,null,null,null,"May",6,41,6.07,7]
[null,null,null,null,null,null,null,null,null,null,"Jun",7,28,6.33,8]
[null,null,null,null,null,null,null,null,null,null,"Jul",6,58,6.51,8]
[null,null,null,null,null,null,null,null,null,null,"Aug",6,67,6.33,8]
[null,null,null,null,null,null,null,null,null,null,"Sep",7,30,6.72,8]
[null,null,null,null,null,null,null,null,null,null,"Oct",7,54,6.88,10]
[null,null,null,null,null,null,null,null,null,null,"Nov",5,30,5.29,8]
[null,null,null,null,null,null,null,null,null,null,"Dec",6,32,6.39,9]
[null,null,null,null,null,null,null,null,null,null,"Annual",{"$f":"AVERAGE(L22:L33)","v":6},{"$f":"MAX(M22:M33)","v":67},{"$f":"AVERAGE(N22:N33)","v":6.0083333333333337},{"$f":"MAX(O22:O33)","v":10}]
[]
[]
[]
[]
[]
[]
[]
[]
[null,null,"01179 372 811"]
[]
[null,null,"emily.hingston@sol-environment.co.uk"]
[]
[]
["Comments :"]

{"sheet":"SO2","index":15,"n_rows":48,"n_cols":17,"rows_kept":48,"cut":false,"hidden":false,"merged":[[3,16,7,18],[9,16,11,18],[12,16,15,18],[66,9,78,9],[4,1,4,3],[4,4,4,6],[4,9,4,14],[6,9,18,9],[21,9,33,9],[36,9,48,9],[47,0,47,6],[48,0,51,6],[51,9,63,9]]}
[{"$f":"+'Cover Page'!$B$29","v":"Annual Performance Report 2022"},null,null,null,{"$f":"+'Cover Page'!$B$33","v":"Dudley Energy from Waste Facility"}]
[]
["Monitoring of Sulphur dioxide emissions",null,null,"Whole Installation",null,null,"See  Notes in Cell Q3",null,null,{"$f":"+A3","v":"Monitoring of Sulphur dioxide emissions"},null,null,null,"Per Combustion Line",null,null,"Notes:"]
[null,null,null,null,null,null,null,null,null,null,null,null,null,null,null,null,"User to add logic to complete Whole installation, Table A5:G18. From the data in Per Combustion Line, Table J6:O79, subject to No. of lines installed"]
["mg/Nm3","1/2 Hourly Reference Periods",null,null,"Daily Reference Periods"]
[{"$f":"+'Cover Page'!C39","v":2022},"1/2 hourly SO2 ELV","Monthly 1/2 hourly mean","Highest 1/2 hourly maximum","Daily SO2 ELV","Monthly daily mean","Highest daily maximum",null,null,{"$f":"+A6","v":2022},"mg/Nm3","Monthly 1/2 hourly mean","Monthly 1/2 hourly maximum","Monthly daily mean","Monthly daily maximum"]
["Jan",200,{"$f":"AVERAGE(L7,L22)","v":23},{"$f":"MAX(M7,M22)","v":184},50,{"$f":"AVERAGE(N7,N22)","v":23.268387096774195},{"$f":"MAX(O7,O22)","v":49},null,null,"A1","Jan",27,184,27.44,49]
["Feb",200,{"$f":"AVERAGE(L8,L23)","v":25},{"$f":"MAX(M8,M23)","v":184},50,{"$f":"AVERAGE(N8,N23)","v":25.515714285714289},{"$f":"MAX(O8,O23)","v":41},null,null,null,"Feb",31,184,31.46,41]
["Mar",200,13.5,132,50,13.158709677419356,31,null,null,null,"Mar",19,132,18.64,31,null,"Whole Installation table A5:G18:"]
["Apr",200,15.5,286,50,15.03,32,null,null,null,"Apr",21,286,20.56,32,null,"Mean: for 1/2 hourly and daily periods calculate mean of values across all operational combustion lines for the month"]
["May",200,14.5,93,50,12.23,22,null,null,null,"May",19,93,15.16,22]
["Jun",200,12.5,94,50,12.524999999999999,29,null,null,null,"Jun",13,94,12.93,29]
["Jul",200,5.5,128,50,5.2434615384615384,12,null,null,null,"Jul",4,128,4.41,10,null,"Maximum: for 1/2 hourly and daily periods use the highest value across all operational combustion lines for the month"]
["Aug",200,4,270,50,4.3666666666666671,18,null,null,null,"Aug",5,241,5.4,17]
["Sep",200,4.5,79,50,4.3721428571428573,16,null,null,null,"Sep",5,79,4.53,16]
["Oct",200,3.5,90,50,3.27,7,null,null,null,"Oct",2,90,1.86,5]
["Nov",200,4,49,50,3.8833333333333337,12,null,null,null,"Nov",2,44,1.6,8]
["Dec",200,6.5,184,50,6.762142857142857,28,null,null,null,"Dec",6,184,6.31,28]
[null,null,null,null,null,null,null,null,null,null,"Annual",{"$f":"AVERAGE(L7:L18)","v":12.833333333333334},{"$f":"MAX(M7:M18)","v":286},{"$f":"AVERAGE(N7:N18)","v":12.525},{"$f":"MAX(O7:O18)","v":49}]
[]
[null,null,null,null,null,null,null,null,null,{"$f":"+A6","v":2022},"mg/Nm3","Monthly 1/2 hourly mean","Monthly 1/2 hourly maximum","Monthly daily mean","Monthly daily maximum"]
[null,null,null,null,null,null,null,null,null,"A2","Jan",19,114,19.096774193548388,33]
[null,null,null,null,null,null,null,null,null,null,"Feb",19,116,19.571428571428573,30]
[null,null,null,null,null,null,null,null,null,null,"Mar",8,49,7.67741935483871,15]
[null,null,null,null,null,null,null,null,null,null,"Apr",10,52,9.5,16]
[null,null,null,null,null,null,null,null,null,null,"May",10,60,9.3000000000000007,16]
[null,null,null,null,null,null,null,null,null,null,"Jun",12,27,12.12,18]
[null,null,null,null,null,null,null,null,null,null,"Jul",7,54,6.0769230769230766,12]
[null,null,null,null,null,null,null,null,null,null,"Aug",3,270,3.3333333333333335,18]
[null,null,null,null,null,null,null,null,null,null,"Sep",4,62,4.2142857142857144,14]
[null,null,null,null,null,null,null,null,null,null,"Oct",5,67,4.68,7]
[null,null,null,null,null,null,null,null,null,null,"Nov",6,49,6.166666666666667,12]
[null,null,null,null,null,null,null,null,null,null,"Dec",7,103,7.2142857142857144,19]
[null,null,null,null,null,null,null,null,null,null,"Annual",{"$f":"AVERAGE(L22:L33)","v":9.1666666666666661},{"$f":"MAX(M22:M33)","v":270},{"$f":"AVERAGE(N22:N33)","v":9.0792597187758464},{"$f":"MAX(O22:O33)","v":33}]
[]
[]
[]
[]
[]
[]
[]
[]
[null,null,"01179 372 811"]
[]
[null,null,"emily.hingston@sol-environment.co.uk"]
[]
[]
["Comments :"]

{"sheet":"NOx","index":16,"n_rows":48,"n_cols":17,"rows_kept":48,"cut":false,"hidden":false,"merged":[[3,16,7,18],[9,16,11,18],[12,16,15,18],[66,9,78,9],[4,1,4,3],[4,4,4,6],[4,9,4,14],[6,9,18,9],[21,9,33,9],[36,9,48,9],[47,0,47,6],[48,0,51,6],[51,9,63,9]]}
[{"$f":"+'Cover Page'!$B$29","v":"Annual Performance Report 2022"},null,null,null,{"$f":"+'Cover Page'!$B$33","v":"Dudley Energy from Waste Facility"}]
[]
["Monitoring of Oxides of Nitrogen emissions",null,null,"Whole Installation",null,null,"See  Notes in Cell Q3",null,null,{"$f":"+A3","v":"Monitoring of Oxides of Nitrogen emissions"},null,null,null,"Per Combustion Line",null,null,"Notes:"]
[null,null,null,null,null,null,null,null,null,null,null,null,null,null,null,null,"User to add logic to complete Whole installation, Table A5:G18. From the data in Per Combustion Line, Table J6:O79, subject to No. of lines installed"]
["mg/Nm3","1/2 Hourly Reference Periods",null,null,"Daily Reference Periods"]
[{"$f":"+'Cover Page'!C39","v":2022},"1/2 hourly NOx ELV","Monthly 1/2 hourly mean","Highest 1/2 hourly maximum","Daily NOx ELV","Monthly daily mean","Highest daily maximum",null,null,{"$f":"+A6","v":2022},"mg/Nm3","Monthly 1/2 hourly mean","Monthly 1/2 hourly maximum","Monthly daily mean","Monthly daily maximum"]
["Jan",400,{"$f":"AVERAGE(L7,L22)","v":180.5},{"$f":"MAX(M7,M22)","v":552},200,{"$f":"AVERAGE(N7,N22)","v":180},{"$f":"MAX(O7,O22)","v":196},null,null,"A1","Jan",180,552,180,188]
["Feb",400,{"$f":"AVERAGE(L8,L23)","v":179.5},{"$f":"MAX(M8,M23)","v":275},200,{"$f":"AVERAGE(N8,N23)","v":179.5},{"$f":"MAX(O8,O23)","v":184},null,null,null,"Feb",179,275,180,184]
["Mar",400,179,409,200,177,189,null,null,null,"Mar",178,409,177,189,null,"Whole Installation table A5:G18:"]
["Apr",400,181,420,200,180,189,null,null,null,"Apr",181,420,180,189,null,"Mean: for 1/2 hourly and daily periods calculate mean of values across all operational combustion lines for the month"]
["May",400,179.5,295,200,180,187,null,null,null,"May",180,229,180,182]
["Jun",400,180,265,200,180,182,null,null,null,"Jun",180,265,180,182]
["Jul",400,180,303,200,179.5,183,null,null,null,"Jul",180,245,179,181,null,"Maximum: for 1/2 hourly and daily periods use the highest value across all operational combustion lines for the month"]
["Aug",400,166,273,200,169.5,181,null,null,null,"Aug",166,248,166,181]
["Sep",400,179,358,200,179.5,187,null,null,null,"Sep",180,252,179,181]
["Oct",400,180,304,200,180,183,null,null,null,"Oct",180,195,179,180]
["Nov",400,180.5,342,200,180,196,null,null,null,"Nov",180,307,180,196]
["Dec",400,178,319,200,178,187,null,null,null,"Dec",175,241,177,180]
[null,null,null,null,null,null,null,null,null,null,"Annual",{"$f":"AVERAGE(L7:L18)","v":178.25},{"$f":"MAX(M7:M18)","v":552},{"$f":"AVERAGE(N7:N18)","v":178.08333333333334},{"$f":"MAX(O7:O18)","v":196}]
[]
[null,null,null,null,null,null,null,null,null,{"$f":"+A6","v":2022},"mg/Nm3","Monthly 1/2 hourly mean","Monthly 1/2 hourly maximum","Monthly daily mean","Monthly daily maximum"]
[null,null,null,null,null,null,null,null,null,"A2","Jan",181,307,180,196]
[null,null,null,null,null,null,null,null,null,null,"Feb",180,263,179,184]
[null,null,null,null,null,null,null,null,null,null,"Mar",180,309,177,183]
[null,null,null,null,null,null,null,null,null,null,"Apr",181,287,180,182]
[null,null,null,null,null,null,null,null,null,null,"May",179,295,180,187]
[null,null,null,null,null,null,null,null,null,null,"Jun",180,228,180,181]
[null,null,null,null,null,null,null,null,null,null,"Jul",180,303,180,183]
[null,null,null,null,null,null,null,null,null,null,"Aug",166,273,173,180]
[null,null,null,null,null,null,null,null,null,null,"Sep",178,358,180,187]
[null,null,null,null,null,null,null,null,null,null,"Oct",180,304,181,183]
[null,null,null,null,null,null,null,null,null,null,"Nov",181,342,180,186]
[null,null,null,null,null,null,null,null,null,null,"Dec",181,319,179,187]
[null,null,null,null,null,null,null,null,null,null,"Annual",{"$f":"AVERAGE(L22:L33)","v":178.91666666666666},{"$f":"MAX(M22:M33)","v":358},{"$f":"AVERAGE(N22:N33)","v":179.08333333333334},{"$f":"MAX(O22:O33)","v":196}]
[]
[]
[]
[]
[]
[]
[]
[]
[null,null,"01179 372 811"]
[]
[null,null,"emily.hingston@sol-environment.co.uk"]
[]
[]
["Comments :"]

{"sheet":"TOC","index":17,"n_rows":48,"n_cols":17,"rows_kept":48,"cut":false,"hidden":false,"merged":[[3,16,7,18],[9,16,11,18],[12,16,15,18],[66,9,78,9],[4,1,4,3],[4,4,4,6],[4,9,4,14],[6,9,18,9],[21,9,33,9],[36,9,48,9],[47,0,47,6],[48,0,51,6],[51,9,63,9]]}
[{"$f":"+'Cover Page'!$B$29","v":"Annual Performance Report 2022"},null,null,null,{"$f":"+'Cover Page'!$B$33","v":"Dudley Energy from Waste Facility"}]
[]
["Monitoring of Total organic carbon emissions",null,null,"Whole Installation",null,null,"See  Notes in Cell Q3",null,null,{"$f":"+A3","v":"Monitoring of Total organic carbon emissions"},null,null,null,"Per Combustion Line",null,null,"Notes:"]
[null,null,null,null,null,null,null,null,null,null,null,null,null,null,null,null,"User to add logic to complete Whole installation, Table A5:G18. From the data in Per Combustion Line, Table J6:O79, subject to No. of lines installed"]
["mg/Nm3","1/2 Hourly Reference Periods",null,null,"Daily Reference Periods"]
[{"$f":"+'Cover Page'!C39","v":2022},"1/2 hourly TOC ELV","Monthly 1/2 hourly mean","Highest 1/2 hourly maximum","Daily TOC ELV","Monthly daily mean","Highest daily maximum",null,null,{"$f":"+A6","v":2022},"mg/Nm3","Monthly 1/2 hourly mean","Monthly 1/2 hourly maximum","Monthly daily mean","Monthly daily maximum"]
["Jan",20,{"$f":"AVERAGE(L7,L22)","v":0.5},{"$f":"MAX(M7,M22)","v":51},10,{"$f":"AVERAGE(N7,N22)","v":1},{"$f":"MAX(O7,O22)","v":2},null,null,"A1","Jan",0,51,1,2]
["Feb",20,{"$f":"AVERAGE(L8,L23)","v":1},{"$f":"MAX(M8,M23)","v":14},10,{"$f":"AVERAGE(N8,N23)","v":1},{"$f":"MAX(O8,O23)","v":2},null,null,null,"Feb",1,9,1,1]
["Mar",20,1,7,10,1,1,null,null,null,"Mar",1,7,1,1,null,"Whole Installation table A5:G18:"]
["Apr",20,1,6,10,1,1,null,null,null,"Apr",1,6,1,1,null,"Mean: for 1/2 hourly and daily periods calculate mean of values across all operational combustion lines for the month"]
["May",20,0.5,11,10,1,2,null,null,null,"May",0,11,1,1]
["Jun",20,1,7,10,1,1,null,null,null,"Jun",1,4,1,1]
["Jul",20,1,8,10,1,2,null,null,null,"Jul",1,8,1,2,null,"Maximum: for 1/2 hourly and daily periods use the highest value across all operational combustion lines for the month"]
["Aug",20,1,20,10,1,2,null,null,null,"Aug",1,7,1,1]
["Sep",20,1,16,10,1,2,null,null,null,"Sep",1,9,1,1]
["Oct",20,1,23,10,1,2,null,null,null,"Oct",1,14,1,2]
["Nov",20,1,29,10,1,2,null,null,null,"Nov",1,14,1,1]
["Dec",20,1,6,10,1,2,null,null,null,"Dec",1,2,1,1]
[null,null,null,null,null,null,null,null,null,null,"Annual",{"$f":"AVERAGE(L7:L18)","v":0.83333333333333337},{"$f":"MAX(M7:M18)","v":51},{"$f":"AVERAGE(N7:N18)","v":1},{"$f":"MAX(O7:O18)","v":2}]
[]
[null,null,null,null,null,null,null,null,null,{"$f":"+A6","v":2022},"mg/Nm3","Monthly 1/2 hourly mean","Monthly 1/2 hourly maximum","Monthly daily mean","Monthly daily maximum"]
[null,null,null,null,null,null,null,null,null,"A2","Jan",1,4,1,1]
[null,null,null,null,null,null,null,null,null,null,"Feb",1,14,1,2]
[null,null,null,null,null,null,null,null,null,null,"Mar",1,6,1,1]
[null,null,null,null,null,null,null,null,null,null,"Apr",1,2,1,1]
[null,null,null,null,null,null,null,null,null,null,"May",1,6,1,2]
[null,null,null,null,null,null,null,null,null,null,"Jun",1,7,1,1]
[null,null,null,null,null,null,null,null,null,null,"Jul",1,5,1,1]
[null,null,null,null,null,null,null,null,null,null,"Aug",1,20,1,2]
[null,null,null,null,null,null,null,null,null,null,"Sep",1,16,1,2]
[null,null,null,null,null,null,null,null,null,null,"Oct",1,23,1,2]
[null,null,null,null,null,null,null,null,null,null,"Nov",1,29,1,2]
[null,null,null,null,null,null,null,null,null,null,"Dec",1,6,1,2]
[null,null,null,null,null,null,null,null,null,null,"Annual",{"$f":"AVERAGE(L22:L33)","v":1},{"$f":"MAX(M22:M33)","v":29},{"$f":"AVERAGE(N22:N33)","v":1},{"$f":"MAX(O22:O33)","v":2}]
[]
[]
[]
[]
[]
[]
[]
[]
[null,null,"01179 372 811"]
[]
[null,null,"emily.hingston@sol-environment.co.uk"]
[]
[]
["Comments :"]

{"sheet":"Particulates","index":18,"n_rows":48,"n_cols":17,"rows_kept":48,"cut":false,"hidden":false,"merged":[[3,16,7,18],[9,16,11,18],[12,16,15,18],[66,9,78,9],[4,1,4,3],[4,4,4,6],[4,9,4,14],[6,9,18,9],[21,9,33,9],[36,9,48,9],[47,0,47,6],[48,0,51,6],[51,9,63,9]]}
[{"$f":"+'Cover Page'!$B$29","v":"Annual Performance Report 2022"},null,null,null,{"$f":"+'Cover Page'!$B$33","v":"Dudley Energy from Waste Facility"}]
[]
["Monitoring of Particulate matter emissions",null,null,"Whole Installation",null,null,"See  Notes in Cell Q3",null,null,{"$f":"+A3","v":"Monitoring of Particulate matter emissions"},null,null,null,"Per Combustion Line",null,null,"Notes:"]
[null,null,null,null,null,null,null,null,null,null,null,null,null,null,null,null,"User to add logic to complete Whole installation, Table A5:G18. From the data in Per Combustion Line, Table J6:O79, subject to No. of lines installed"]
["mg/Nm3","1/2 Hourly Reference Periods",null,null,"Daily Reference Periods"]
[{"$f":"+'Cover Page'!C39","v":2022},"1/2 hourly PM ELV","Monthly 1/2 hourly mean","Highest 1/2 hourly maximum","Daily PM ELV","Monthly daily mean","Highest daily maximum",null,null,{"$f":"+A6","v":2022},"mg/Nm3","Monthly 1/2 hourly mean","Monthly 1/2 hourly maximum","Monthly daily mean","Monthly daily maximum"]
["Jan",30,{"$f":"AVERAGE(L7,L22)","v":1},{"$f":"MAX(M7,M22)","v":7},10,{"$f":"AVERAGE(N7,N22)","v":0.65},{"$f":"MAX(O22)","v":2},null,null,"A1","Jan",1,7,0.3,2]
["Feb",30,{"$f":"AVERAGE(L8,L23)","v":0.5},{"$f":"MAX(M8,M23)","v":6},10,{"$f":"AVERAGE(N8,N23)","v":0.5892857142857143},{"$f":"MAX(O23)","v":1},null,null,null,"Feb",0,6,0.17857142857142858,1]
["Mar",30,1,28,10,0.69354838709677424,2,null,null,null,"Mar",1,28,0.38709677419354838,2,null,"Whole Installation table A5:G18:"]
["Apr",30,0.5,27,10,0.58333333333333337,2,null,null,null,"Apr",0,10,0.16666666666666666,1,null,"Mean: for 1/2 hourly and daily periods calculate mean of values across all operational combustion lines for the month"]
["May",30,0.5,7,10,0.55555555555555558,1,null,null,null,"May",0,5,0.1111111111111111,1]
["Jun",30,0.5,2,10,0.5,2,null,null,null,"Jun",0,1,0,0]
["Jul",30,0.5,3,10,0.5,2,null,null,null,"Jul",0,0,0,0,null,"Maximum: for 1/2 hourly and daily periods use the highest value across all operational combustion lines for the month"]
["Aug",30,0.5,18,10,1.0149999999999999,3,null,null,null,"Aug",0,5,0.03,1]
["Sep",30,0.5,2,10,0.5,2,null,null,null,"Sep",0,1,0,0]
["Oct",30,1,4,10,1,3,null,null,null,"Oct",0,1,0,0]
["Nov",30,1.5,5,10,1.27,2,null,null,null,"Nov",1,5,0.64,2]
["Dec",30,2,45,10,1.5090909090909093,7,null,null,null,"Dec",1,4,0.31818181818181818,2]
[null,null,null,null,null,null,null,null,null,null,"Annual",{"$f":"AVERAGE(L7:L18)","v":0.33333333333333331},{"$f":"MAX(M7:M18)","v":28},{"$f":"AVERAGE(N7:N18)","v":0.17763564989371441},{"$f":"MAX(O7:O18)","v":2}]
[]
[null,null,null,null,null,null,null,null,null,{"$f":"+A6","v":2022},"mg/Nm3","Monthly 1/2 hourly mean","Monthly 1/2 hourly maximum","Monthly daily mean","Monthly daily maximum"]
[null,null,null,null,null,null,null,null,null,"A2","Jan",1,7,1,2]
[null,null,null,null,null,null,null,null,null,null,"Feb",1,4,1,1]
[null,null,null,null,null,null,null,null,null,null,"Mar",1,17,1,2]
[null,null,null,null,null,null,null,null,null,null,"Apr",1,27,1,2]
[null,null,null,null,null,null,null,null,null,null,"May",1,7,1,1]
[null,null,null,null,null,null,null,null,null,null,"Jun",1,2,1,2]
[null,null,null,null,null,null,null,null,null,null,"Jul",1,3,1,2]
[null,null,null,null,null,null,null,null,null,null,"Aug",1,18,2,3]
[null,null,null,null,null,null,null,null,null,null,"Sep",1,2,1,2]
[null,null,null,null,null,null,null,null,null,null,"Oct",2,4,2,3]
[null,null,null,null,null,null,null,null,null,null,"Nov",2,3,1.9,2]
[null,null,null,null,null,null,null,null,null,null,"Dec",3,45,2.7,7]
[null,null,null,null,null,null,null,null,null,null,"Annual",{"$f":"AVERAGE(L22:L33)","v":1.3333333333333333},{"$f":"MAX(M22:M33)","v":45},{"$f":"AVERAGE(N22:N33)","v":1.3833333333333335},{"$f":"MAX(O22:O33)","v":7}]
[]
[]
[]
[]
[]
[]
[]
[]
[null,null,"01179 372 811"]
[]
[null,null,"emily.hingston@sol-environment.co.uk"]
[]
[]
["Comments :"]

{"sheet":"CO 95% 10 min","index":19,"n_rows":79,"n_cols":19,"rows_kept":79,"cut":false,"hidden":false,"merged":[[3,18,7,20],[9,18,11,20],[12,18,15,20],[66,10,78,10],[4,1,4,4],[4,5,4,7],[4,10,4,16],[6,10,18,10],[21,10,33,10],[36,10,48,10],[47,0,47,7],[48,0,51,7],[51,10,63,10]]}
[{"$f":"+'Cover Page'!$B$29","v":"Annual Performance Report 2022"},null,null,null,{"$f":"+'Cover Page'!$B$33","v":"Dudley Energy from Waste Facility"}]
[]
["Monitoring of Carbon Monoxide (10-minute avg)",null,null,null,"Whole Installation",null,null,"See  Notes in Cell S3",null,{"$f":"+A3","v":"Monitoring of Carbon Monoxide (10-minute avg)"},null,null,null,null,"Per Combustion Line",null,"Notes:",null,"Notes:"]
[null,null,null,null,null,null,null,null,null,null,null,null,null,null,null,null,null,null,"User to add logic to complete Whole installation, Table A5:H18. From the data in Per Combustion Line, Table K6:Q79, subject to No. of lines installed"]
["mg/Nm3","10-minute Reference Periods",null,null,null,"Daily Reference Periods"]
[{"$f":"+'Cover Page'!C39","v":2022},"95%ile 10-min avg CO ELV","95%ile 10-min avg maximum","Monthly CO 10-min avg mean","10-min avg maximum","Daily CO ELV","Monthly daily mean","Highest daily maximum",null,null,{"$f":"+A6","v":2022},"mg/Nm3","95%ile 10-min avg maximum","Monthly CO 10-min avg mean","10-min avg maximum","Monthly daily mean","Monthly daily maximum"]
["Jan",150,{"$f":"MAX(M7,M22)","v":14.58},{"$f":"AVERAGE(N7,N22)","v":9.5},{"$f":"MAX(O7,O22)","v":28},50,{"$f":"AVERAGE(P7,P22)","v":9.7808676307007794},{"$f":"MAX(Q7,Q22)","v":52},null,null,"A1","Jan",13.22,10,27,10.206896551724139,52]
["Feb",{"$f":"+B7","v":150},{"$f":"MAX(M8,M23)","v":18.75},{"$f":"AVERAGE(N8,N23)","v":9.5},{"$f":"MAX(O8,O23)","v":54},{"$f":"+F7","v":50},{"$f":"AVERAGE(P8,P23)","v":9.178571428571427},{"$f":"MAX(Q8,Q23)","v":23},null,null,null,"Feb",13.02,9,31,8.6428571428571423,21]
["Mar",{"$f":"+B8","v":150},11.56,6.5,18,{"$f":"+F8","v":50},6.435483870967742,12,null,null,null,"Mar",9.16,5,18,4.903225806451613,12,null,"Whole Installation table A5:H18:"]
["Apr",150,10.08,6.5,15,50,6.4499999999999993,17,null,null,null,"Apr",8.89,5,14,5.3666666666666663,8,null,"Mean: for 10-min and daily periods use average of all operational combustion lines."]
["May",150,20.32,10.5,81,50,9.4,18,null,null,null,"May",20.010000000000002,10,53,9.8000000000000007,16]
["Jun",150,12.01,8,43,50,7.6444444444444439,29,null,null,null,"Jun",12.01,7,31,6.7333333333333334,10]
["Jul",150,9.81,6.5,18,50,5.9617682198327362,11,null,null,null,"Jul",9.35,6,15,5.5161290322580649,9,null,"Maximum: for 10-min and daily periods use the highest of all operational combustion lines in any month."]
["Aug",150,10.029999999999999,6,30,50,5.9166666666666661,51,null,null,null,"Aug",10.029999999999999,6,20,5.5666666666666664,8]
["Sep",150,15.6,10,160,50,9.6212643678160923,46,null,null,null,"Sep",10.11,7,26,6.9666666666666668,21]
["Oct",150,20.65,13.5,777,50,11.771724137931034,90,null,null,null,"Oct",10.119999999999999,6,23,6.1034482758620694,9]
["Nov",150,107.21,23,724,50,17.060000000000002,122,null,null,null,"Nov",32.79,14,252,14.32,74]
["Dec",150,40.409999999999997,10,133,50,10.183441558441558,46,null,null,null,"Dec",7.59,5,33,5.0454545454545459,10]
[null,null,null,null,null,null,null,null,null,null,null,"Annual",{"$f":"AVERAGE(M7:M18)","v":13.025},{"$f":"AVERAGE(N7:N18)","v":7.5},{"$f":"MAX(O7:O18)","v":252},{"$f":"AVERAGE(P7:P18)","v":7.4309453906617415},{"$f":"MAX(Q7:Q18)","v":74}]
[]
[null,null,null,null,null,null,null,null,null,null,{"$f":"+A6","v":2022},"mg/Nm3","95%ile 10-min avg maximum","Monthly CO 10-min avg mean","10-min avg maximum","Monthly daily mean","Monthly daily maximum"]
[null,null,null,null,null,null,null,null,null,null,"A2","Jan",14.58,9,28,9.3548387096774199,18]
[null,null,null,null,null,null,null,null,null,null,null,"Feb",18.75,10,54,9.7142857142857135,23]
[null,null,null,null,null,null,null,null,null,null,null,"Mar",11.56,8,16,7.967741935483871,10]
[null,null,null,null,null,null,null,null,null,null,null,"Apr",10.08,8,15,7.5333333333333332,17]
[null,null,null,null,null,null,null,null,null,null,null,"May",20.32,11,81,9,18]
[null,null,null,null,null,null,null,null,null,null,null,"Jun",11.53,9,43,8.5555555555555554,29]
[null,null,null,null,null,null,null,null,null,null,null,"Jul",9.81,7,18,6.4074074074074074,11]
[null,null,null,null,null,null,null,null,null,null,null,"Aug",8.3800000000000008,6,30,6.2666666666666666,51]
[null,null,null,null,null,null,null,null,null,null,null,"Sep",15.6,13,160,12.275862068965518,46]
[null,null,null,null,null,null,null,null,null,null,null,"Oct",20.65,21,777,17.440000000000001,90]
[null,null,null,null,null,null,null,null,null,null,null,"Nov",107.21,32,724,19.8,122]
[null,null,null,null,null,null,null,null,null,null,null,"Dec",40.409999999999997,15,133,15.321428571428571,46]
[null,null,null,null,null,null,null,null,null,null,null,"Annual",{"$f":"AVERAGE(M22:M33)","v":24.073333333333334},{"$f":"AVERAGE(N22:N33)","v":12.416666666666666},{"$f":"MAX(O22:O33)","v":777},{"$f":"AVERAGE(P22:P33)","v":10.803093330233672},{"$f":"MAX(Q22:Q33)","v":122}]
[]
[null,null,null,null,null,null,null,null,null,null,null,null,null,null,null,null,"Monthly daily maximum"]
[]
[]
[]
[]
[]
[]
[null,null,"01179 372 811"]
[]
[null,null,"emily.hingston@sol-environment.co.uk"]
[]
[]
["Comments :"]
["Environment Agency explanatory note: The 10-minute average ELV is based on the “95th percentile”. In this case this means that 95% of the 10 minute averages in the relevant 24-hour period (i.e. 137) must be below 150 mg/Nm3, and 5% (i.e. 7) are allowed to be any value above 150 mg/Nm3. Whilst we expect operators to minimise CO emissions at all times, it is perfectly acceptable for the value of the maximum 10-minute average to be above 150 mg/Nm3, provided the 95th percentile ELV has been met for that period. ",null,null,null,null,null,null,null,null,null,null,null,null,null,null,null,{"$f":"MAX(Q37:Q48)","v":0}]
[]
[null,null,null,null,null,null,null,null,null,null,null,null,null,null,null,null,"Monthly daily maximum"]
[]
[]
[]
[]
[]
[]
[]
[]
[]
[]
[]
[]
[null,null,null,null,null,null,null,null,null,null,null,null,null,null,null,null,{"$f":"MAX(Q52:Q63)","v":0}]
[]
[null,null,null,null,null,null,null,null,null,null,null,null,null,null,null,null,"Monthly daily maximum"]
[]
[]
[]
[]
[]
[]
[]
[]
[]
[]
[]
[]
[null,null,null,null,null,null,null,null,null,null,null,null,null,null,null,null,{"$f":"MAX(Q67:Q78)","v":0}]

{"sheet":"NH3","index":20,"n_rows":49,"n_cols":17,"rows_kept":49,"cut":false,"hidden":false,"merged":[[3,16,7,18],[9,16,11,18],[12,16,15,18],[66,9,78,9],[4,1,4,3],[4,4,4,6],[4,9,4,14],[6,9,18,9],[21,9,33,9],[36,9,48,9],[47,0,47,6],[48,0,51,6],[51,9,63,9]]}
[{"$f":"+'Cover Page'!$B$29","v":"Annual Performance Report 2022"},null,null,null,{"$f":"+'Cover Page'!$B$33","v":"Dudley Energy from Waste Facility"}]
[]
["Monitoring of Ammnonia emissions ",null,null,"Whole Installation",null,null,"See  Notes in Cell Q3",null,null,{"$f":"+A3","v":"Monitoring of Ammnonia emissions "},null,null,null,"Per Combustion Line",null,null,"Notes:"]
[null,null,null,null,null,null,null,null,null,null,null,null,null,null,null,null,"User to add logic to complete Whole installation, Table A5:G18. From the data in Per Combustion Line, Table J6:O79, subject to No. of lines installed"]
["mg/Nm3","1/2 Hourly Reference Periods",null,null,"Daily Reference Periods"]
[{"$f":"+'Cover Page'!C39","v":2022},"1/2 hourly NH3 ELV","Monthly 1/2 hourly mean","Highest 1/2 hourly maximum","Daily NH3 ELV","Monthly daily mean","Highest daily maximum",null,null,{"$f":"+A6","v":2022},"mg/Nm3","Monthly 1/2 hourly mean","Monthly 1/2 hourly maximum","Monthly daily mean","Monthly daily maximum"]
["Jan",0,{"$f":"AVERAGE(L7,L22)","v":2.5},{"$f":"MAX(M7,M22)","v":172},10,{"$f":"AVERAGE(N7,N22)","v":2.4627363737486094},{"$f":"MAX(O7,O22)","v":8},null,null,"A1","Jan",4,172,3.3448275862068964,8]
["Feb",{"$f":"+B7","v":0},{"$f":"AVERAGE(L8,L23)","v":3.5},{"$f":"MAX(M8,M23)","v":50},{"$f":"+E7","v":10},{"$f":"AVERAGE(N8,N23)","v":3.0892857142857144},{"$f":"MAX(O8,O23)","v":7},null,null,null,"Feb",5,50,4.5357142857142856,7]
["Mar",{"$f":"+B8","v":0},4,108,{"$f":"+E8","v":10},4.112903225806452,9,null,null,null,"Mar",6,108,6,9,null,"Whole Installation table A5:G18:"]
["Apr",0,5,56,10,4.8499999999999996,10,null,null,null,"Apr",8,28,7.5333333333333332,10,null,"Mean: for 1/2 hourly and daily periods calculate mean of values across all operational combustion lines for the month"]
["May",0,7.5,129,10,5.7784090909090908,13,null,null,null,"May",8,47,6.375,10]
["Jun",0,6,40,10,5.4499999999999993,9,null,null,null,"Jun",7,34,6.5666666666666664,9]
["Jul",0,5,50,10,4.9068100358422937,7,null,null,null,"Jul",5,32,5.258064516129032,7,null,"Maximum: for 1/2 hourly and daily periods use the highest value across all operational combustion lines for the month"]
["Aug",0,5.5,57,10,5.3666666666666671,9,null,null,null,"Aug",7,57,6.4,9]
["Sep",0,6.5,216,10,6.4214285714285717,15,null,null,null,"Sep",7,82,6.7,10]
["Oct",0,6.5,202,10,5.7816091954022983,18,null,null,null,"Oct",5,33,4.8965517241379306,7]
["Nov",0,7,224,10,6.9941666666666666,23,null,null,null,"Nov",5,35,5.28,8]
["Dec",0,4,64,10,4.0113636363636367,8,null,null,null,"Dec",3,11,3.2727272727272729,4]
[null,null,null,null,null,null,null,null,null,null,"Annual",{"$f":"AVERAGE(L7:L18)","v":5.833333333333333},{"$f":"MAX(M7:M18)","v":172},{"$f":"AVERAGE(N7:N18)","v":5.5135737820762847},{"$f":"MAX(O7:O18)","v":10}]
[]
[null,null,null,null,null,null,null,null,null,{"$f":"+A6","v":2022},"mg/Nm3","Monthly 1/2 hourly mean","Monthly 1/2 hourly maximum","Monthly daily mean","Monthly daily maximum"]
[null,null,null,null,null,null,null,null,null,"A2","Jan",1,19,1.5806451612903225,3]
[null,null,null,null,null,null,null,null,null,null,"Feb",2,19,1.6428571428571428,4]
[null,null,null,null,null,null,null,null,null,null,"Mar",2,61,2.225806451612903,5]
[null,null,null,null,null,null,null,null,null,null,"Apr",2,56,2.1666666666666665,3]
[null,null,null,null,null,null,null,null,null,null,"May",7,129,5.1818181818181817,13]
[null,null,null,null,null,null,null,null,null,null,"Jun",5,40,4.333333333333333,8]
[null,null,null,null,null,null,null,null,null,null,"Jul",5,50,4.5555555555555554,7]
[null,null,null,null,null,null,null,null,null,null,"Aug",4,56,4.333333333333333,7]
[null,null,null,null,null,null,null,null,null,null,"Sep",6,216,6.1428571428571432,15]
[null,null,null,null,null,null,null,null,null,null,"Oct",8,202,6.666666666666667,18]
[null,null,null,null,null,null,null,null,null,null,"Nov",9,224,8.7083333333333339,23]
[null,null,null,null,null,null,null,null,null,null,"Dec",5,64,4.75,8]
[null,null,null,null,null,null,null,null,null,null,"Annual",{"$f":"AVERAGE(L22:L33)","v":4.666666666666667},{"$f":"MAX(M22:M33)","v":224},{"$f":"AVERAGE(N22:N33)","v":4.3573227474437148},{"$f":"MAX(O22:O33)","v":23}]
[]
[]
[]
[]
[]
[]
[]
[]
[null,null,"01179 372 811"]
[]
[null,null,"emily.hingston@sol-environment.co.uk"]
[]
[]
["Comments :"]
["An indicated ELV value of zero in the table above means that no ammonia limit is set in the permit.  "]